Workbook

Sheet PORTADA
AL111: Len@range(a2)
M125: Range(1)
K198: Len@25

Sheet MENU (hidden)
B7: Descripción | C7: Nombre de la hoja
B8: Matriz de percepciones y deducciones | C8: MATRIZ
B9: Ejemplo corrección de errores en CFDI | C9: ERRORES
B10: Ejemplo previsión social | C10: PREVISION
B11: Importar XML de nómina | C11: NOMINA
B12: Visor de nómina | C12: VISORN
B13: Formato para el ajuste de sueldos | C13: AJUSTE SUELDOS
B14: Ejemplo CFDI por diferencias a cargo o a favor | C14: RECIBO
B15: Catálogo de estados | C15: c_Estado

Sheet MATRIZ (hidden)
E3: Deduciones
B4: Tipo | C4: Percepción | D4: Régimen | E4: Tipo | F4: Gravado | G4: Tipo | H4: Exento
B5: 1 | C5: Sueldos, Salarios Rayas y Jornales | D5: 02 Sueldos (Incluye ingresos señalados en la fracción I del artículo 94 de LISR) | E5: 099 | F5: Ajuste a ingresos por sueldos y salarios gravados
E6: 12 | F6: Anticipo de salarios
E7: 13 | F7: Pagos hechos con exceso al trabajador
E8: 20 | F8: Ausencia (Ausentismo)
B9: 2 | C9: Gratificación Anual (Aguinaldo) | D9: 02 Sueldos (Incluye ingresos señalados en la fracción I del artículo 94 de LISR) | E9: 25 | F9: Ajuste en Gratificación Anual (Aguinaldo) Gravado | G9: 24 | H9: Ajuste en Gratificación Anual (Aguinaldo) Exento
B10: 3 | C10: Participación de los Trabajadores en las Utilidades PTU | D10: 02 Sueldos (Incluye ingresos señalados en la fracción I del artículo 94 de LISR) | E10: 27 | F10: Ajuste en Participación de los Trabajadores en las Utilidades PTU Gravado | G10: 26 | H10: Ajuste en Participación de los Trabajadores en las Utilidades PTU Exento
B11: 4 | C11: Reembolso de Gastos Médicos Dentales y Hospitalarios | D11: 02 Sueldos (Incluye ingresos señalados en la fracción I del artículo 94 de LISR) | G11: 28 | H11: Ajuste en Reembolso de Gastos Médicos Dentales y Hospitalarios Exento
B12: 5 | C12: Fondo de Ahorro | D12: 02 Sueldos (Incluye ingresos señalados en la fracción I del artículo 94 de LISR) | E12: 082 | F12: Ajuste en Fondo de ahorro Gravado | G12: 29 | H12: Ajuste en Fondo de ahorro Exento
B13: 6 | C13: Caja de ahorro | D13: 02 Sueldos (Incluye ingresos señalados en la fracción I del artículo 94 de LISR) | E13: 083 | F13: Ajuste en Caja de ahorro Gravado | G13: 30 | H13: Ajuste en Caja de ahorro Exento
B14: 9 | C14: Contribuciones a Cargo del Trabajador Pagadas por el Patrón | D14: 02 Sueldos (Incluye ingresos señalados en la fracción I del artículo 94 de LISR) | G14: 31 | H14: Ajuste en Contribuciones a Cargo del Trabajador Pagadas por el Patrón Exento
B15: 10 | C15: Premios por puntualidad | D15: 02 Sueldos (Incluye ingresos señalados en la fracción I del artículo 94 de LISR) | E15: 32 | F15: Ajuste en Premios por puntualidad Gravado
B16: 11 | C16: Prima de Seguro de vida | D16: 02 Sueldos (Incluye ingresos señalados en la fracción I del artículo 94 de LISR) | E16: 084 | F16: Ajuste en Prima de Seguro de vida Gravado | G16: 33 | H16: Ajuste en Prima de Seguro de vida Exento
B17: 12 | C17: Seguro de Gastos Médicos Mayores | D17: 02 Sueldos (Incluye ingresos señalados en la fracción I del artículo 94 de LISR) | E17: 084 | F17: Ajuste en Prima de Seguro de vida Gravado | G17: 33 | H17: Ajuste en Prima de Seguro de vida Exento
B18: 13 | C18: Cuotas Sindicales Pagadas por el Patrón | D18: 02 Sueldos (Incluye ingresos señalados en la fracción I del artículo 94 de LISR) | G18: 35 | H18: Ajuste en Cuotas Sindicales Pagadas por el Patrón Exento
B19: 14 | C19: Subsidios por incapacidad | D19: 02 Sueldos (Incluye ingresos señalados en la fracción I del artículo 94 de LISR) | E19: 6 | F19: Descuento por incapacidad
E20: 086 | F20: Ajuste en Subsidios por incapacidad Gravado | G20: 36 | H20: Ajuste en Subsidios por incapacidad Exento
B21: 15 | C21: Becas para trabajadores y/o hijos | D21: 02 Sueldos (Incluye ingresos señalados en la fracción I del artículo 94 de LISR) | E21: 087 | F21: Ajuste en Becas para trabajadores y/o hijos Gravado | G21: 37 | H21: Ajuste en Becas para trabajadores y/o hijos Exento
B22: 19 | C22: Horas extra | D22: 02 Sueldos (Incluye ingresos señalados en la fracción I del artículo 94 de LISR) | E22: 39 | F22: Ajuste en Horas extra Gravado | G22: 38 | H22: Ajuste en Horas extra Exento
B23: 20 | C23: Prima dominical | D23: 02 Sueldos (Incluye ingresos señalados en la fracción I del artículo 94 de LISR) | E23: 41 | F23: Ajuste en Prima dominical Gravado | G23: 40 | H23: Ajuste en Prima dominical Exento
B24: 21 | C24: Prima vacacional | D24: 02 Sueldos (Incluye ingresos señalados en la fracción I del artículo 94 de LISR) | E24: 43 | F24: Ajuste en Prima vacacional Gravado | G24: 42 | H24: Ajuste en Prima vacacional Exento
B25: 22 | C25: Prima por antigüedad | D25: 13 Indemnización o Separación | E25: 45 | F25: Ajuste en Prima por antigüedad Gravado | G25: 44 | H25: Ajuste en Prima por antigüedad Exento
B26: 23 | C26: Pagos por separación | D26: 13 Indemnización o Separación | E26: 47 | F26: Ajuste en Pagos por separación Gravado | G26: 46 | H26: Ajuste en Pagos por separación Exento | I26: 67 | J26: Ajuste en Pagos por separación Acumulable | K26: 68 | L26: Ajuste en Pagos por separación No acumulable
B27: 24 | C27: Seguro de retiro | D27: 02 Sueldos (Incluye ingresos señalados en la fracción I del artículo 94 de LISR) | E27: 088 | F27: Ajuste en Seguro de retiro Gravado | G27: 48 | H27: Ajuste en Seguro de retiro Exento
B28: 25 | C28: Indemnizaciones | D28: 13 Indemnización o Separación | E28: 50 | F28: Ajuste en Indemnizaciones Gravado | G28: 49 | H28: Ajuste en Indemnizaciones Exento
B29: 26 | C29: Reembolso por funeral | D29: 02 Sueldos (Incluye ingresos señalados en la fracción I del artículo 94 de LISR) | G29: 51 | H29: Ajuste en Reembolso por funeral Exento
B30: 27 | C30: Cuotas de seguridad social pagadas por el patrón | D30: 02 Sueldos (Incluye ingresos señalados en la fracción I del artículo 94 de LISR) | G30: 52 | H30: Ajuste en Cuotas de seguridad social pagadas por el patrón Exento
B31: 28 | C31: Comisiones | D31: 02 Sueldos (Incluye ingresos señalados en la fracción I del artículo 94 de LISR) | E31: 53 | F31: Ajuste en Comisiones Gravado
B32: 29 | C32: Vales de despensa | D32: 02 Sueldos (Incluye ingresos señalados en la fracción I del artículo 94 de LISR) | E32: 089 | F32: Ajuste en Vales de despensa Gravado | G32: 54 | H32: Ajuste en Vales de despensa Exento
B33: 30 | C33: Vales de restaurante | D33: 02 Sueldos (Incluye ingresos señalados en la fracción I del artículo 94 de LISR) | E33: 090 | F33: Ajuste en Vales de restaurante Gravado | G33: 55 | H33: Ajuste en Vales de restaurante Exento
B34: 31 | C34: Vales de gasolina | D34: 02 Sueldos (Incluye ingresos señalados en la fracción I del artículo 94 de LISR) | E34: 091 | F34: Ajuste en Vales de gasolina Gravado | G34: 56 | H34: Ajuste en Vales de gasolina Exento
B35: 32 | C35: Vales de ropa | D35: 02 Sueldos (Incluye ingresos señalados en la fracción I del artículo 94 de LISR) | E35: 092 | F35: Ajuste en Vales de ropa Gravado | G35: 57 | H35: Ajuste en Vales de ropa Exento
B36: 33 | C36: Ayuda para renta | D36: 02 Sueldos (Incluye ingresos señalados en la fracción I del artículo 94 de LISR) | E36: 093 | F36: Ajuste en Ayuda para renta Gravado | G36: 58 | H36: Ajuste en Ayuda para renta Exento
B37: 34 | C37: Ayuda para artículos escolares | D37: 02 Sueldos (Incluye ingresos señalados en la fracción I del artículo 94 de LISR) | E37: 094 | F37: Ajuste en Ayuda para artículos escolares Gravado | G37: 59 | H37: Ajuste en Ayuda para artículos escolares Exento
B38: 35 | C38: Ayuda para anteojos | D38: 02 Sueldos (Incluye ingresos señalados en la fracción I del artículo 94 de LISR) | E38: 095 | F38: Ajuste en Ayuda para anteojos Gravado | G38: 60 | H38: Ajuste en Ayuda para anteojos Exento
B39: 36 | C39: Ayuda para transporte | D39: 02 Sueldos (Incluye ingresos señalados en la fracción I del artículo 94 de LISR) | E39: 096 | F39: Ajuste en Ayuda para transporte Gravado | G39: 61 | H39: Ajuste en Ayuda para transporte Exento
B40: 37 | C40: Ayuda para gastos de funeral | D40: 02 Sueldos (Incluye ingresos señalados en la fracción I del artículo 94 de LISR) | E40: 097 | F40: Ajuste en Ayuda para gastos de funeral Gravado | G40: 62 | H40: Ajuste en Ayuda para gastos de funeral Exento
B41: 38 | C41: Otros ingresos por salarios | D41: 02 Sueldos (Incluye ingresos señalados en la fracción I del artículo 94 de LISR) | E41: 64 | F41: Ajuste en Otros ingresos por salarios Gravado | G41: 63 | H41: Ajuste en Otros ingresos por salarios Exento
B42: 39 | C42: Jubilaciones, pensiones o haberes de retiro | D42: 03 Jubilados 04 Pensionados 12 Jubilados o pensionados | E42: 66 | F42: Ajuste en Jubilaciones, pensiones o haberes de retiro en una sola exhibición Gravado | G42: 65 | H42: Ajuste en Jubilaciones, pensiones o haberes de retiro en una sola exhibición Exento
B43: 44 | C43: Jubilaciones, pensiones o haberes de retiro en parcialidades | E43: 70 | F43: Ajuste en Jubilaciones, pensiones o haberes de retiro en parcialidades Gravado | G43: 69 | H43: Ajuste en Jubilaciones, pensiones o haberes de retiro en parcialidades Exento
B44: 45 | C44: Ingresos en acciones o títulos valor que representan bienes | D44: 05 Asimilados Miembros Sociedades Cooperativas Produccion 06 Asimilados Integrantes Sociedades Asociaciones Civiles 07 Asimilados Miembros consejos 08 Asimilados comisionistas 09 Asimilados honorarios 10 Asimilados acciones 11 Asimilados otros
B45: 046 | C45: Ingresos asimilados a salarios | E45: 098 | F45: Ajuste a ingresos asimilados a salarios gravados
B46: 047 | C46: Alimentación diferentes a los establecidos en el Art 94 último párrafo LISR | D46: 02 Sueldos (Incluye ingresos señalados en la fracción I del artículo 94 de LISR) | E46: 75 | F46: Ajuste en Alimentación Gravado | G46: 74 | H46: Ajuste en Alimentación Exento
B47: 48 | C47: Habitación | D47: 02 Sueldos (Incluye ingresos señalados en la fracción I del artículo 94 de LISR) | E47: 77 | F47: Ajuste en Habitación Gravado | G47: 76 | H47: Ajuste en Habitación Exento
B48: 49 | C48: Premios por asistencia | D48: 02 Sueldos (Incluye ingresos señalados en la fracción I del artículo 94 de LISR) | E48: 78 | F48: Ajuste en Premios por asistencia
B49: 50 | C49: Viáticos | D49: 02 Sueldos (Incluye ingresos señalados en la fracción I del artículo 94 de LISR) | E49: 80 | F49: Ajuste en Viáticos gravados | G49: 100 | H49: Ajuste en Viáticos exentos
B50: 51 | C50: Pagos por gratificaciones, primas, compensaciones, recompensas u otros a extrabajadores derivados de jubilación en parcialidades | D50: 03 Jubilados 04 Pensionados 12 Jubilados o pensionados | E50: 102 | F50: Ajuste a pagos por gratificaciones, primas, compensaciones, recompensas u otros a extrabajadores derivados de jubilación en parcialidades, gravados
B51: 52 | C51: Pagos que se realicen a extrabajadores que obtengan una jubilación en parcialidades derivados de la ejecución de resoluciones judicial o de un laudo | E51: 103 | F51: Ajuste a pagos que se realicen a extrabajadores que obtengan una jubilación en parcialidades derivados de la ejecución de una resolución judicial o de un laudo gravados | G51: 104 | H51: Ajuste a pagos que se realicen a extrabajadores que obtengan una jubilación en parcialidades derivados de la ejecución de una resolución judicial o de un laudo exentos
B52: 53 | C52: Pagos que se realicen a extrabajadores que obtengan una jubilación en una sola exhibición derivados de la ejecución de resoluciones judicial o de un laudo | E52: 105 | F52: Ajuste a pagos que se realicen a extrabajadores que obtengan una jubilación en una sola exhibición derivados de la ejecución de una resolución judicial o de un laudo gravados | G52: 106 | H52: Ajuste a pagos que se realicen a extrabajadores que obtengan una jubilación en una sola exhibición derivados de la ejecución de una resolución judicial o de un laudo exentos

Sheet ERROR (hidden)
B3: Nómina de la 2a. Quincena de enero 2025
B4: Se timbro la exención de horas extras con el salario mínimo en lugar de la UMA
B6: Tipo | C6: Descripción | D6: Gravado | E6: Exento | G6: Tipo | H6: Descripción | I6: Importe
B7: 1 | C7: Sueldos, Salarios Rayas y Jornales | D7: =D20*15 -> 9750 | G7: 1 | H7: IMSS | I7: 136
B8: 19 | C8: Horas extra | D8: =D23 -> 731.25 | E8: =D23 -> 731.25 | G8: 2 | H8: ISR | I8: 780
C9: Tipo de horas | D9: 02
C10: Días | D10: 3
C11: Horas | D11: =D19 -> 9
C12: Importe | D12: =D22 -> 1462.5
B14: Tipo | C14: Descripción | D14: Importe
B15: 2 | C15: Subsidio para el empleo (efectivamente entregado al trabajador). | D15: 0
C16: Subsidio al empleo causado | D16: 0
C18: Determinación de horas extras | D18: Incorrecto | E18: Correcto
C19: No. de horas | D19: 9 | E19: =D19 -> 9
C20: Salario diario | D20: 650 | E20: =D20 -> 650
C21: Cuota por hora extra | D21: =D20/4 -> 162.5 | E21: 162.5
C22: Importe horas extras | D22: =D19*D21 -> 1462.5 | E22: 1462.5
C23: (x) 50% | D23: =D22*0.5 -> 731.25 | E23: 731.25
C24: vs
C25: 5 salarios mínimos por semana | D25: =278.8*5 -> 1394 | E25: =5*113.14 -> 565.7 | F25: =E8-E25 -> 165.55 | G25: Diferencia de exento
B28: Nómina 2a. Quincena de noviembre de 2025
B30: Tipo | C30: Descripción | D30: Gravado | E30: Exento | G30: Tipo | H30: Descripción | I30: Importe
B31: 1 | C31: Sueldos, Salarios Rayas y Jornales | D31: =D20*15 -> 9750 | G31: 1 | H31: IMSS | I31: 136
B32: 19 | C32: Horas extra | D32: =F25 -> 165.55 | G32: 2 | H32: ISR | I32: 780
C33: Tipo de horas | D33: 02 | G33: 38 | H33: Ajuste en Horas extra Exento | I33: =D32 -> 165.55
C34: Días | D34: 3
C35: Horas | D35: =D43 -> 0
C36: Importe | D36: =D46 -> 0
B38: Tipo | C38: Descripción | D38: Importe
B39: 2 | C39: Subsidio para el empleo (efectivamente entregado al trabajador). | D39: 0
C40: Subsidio al empleo causado | D40: 0

Sheet PREVISION (hidden)
C2: Capture información en las celdas de color verde | F2: Ir al MENÚ
B4: c_TipoPercepcion | C4: Descripción | D4: Tipo de régimen | E4: Gravado | F4: Exento | G4: ¿Previsión social? | H4: ¿Con límite?
B5: 1 | C5: Sueldos, Salarios Rayas y Jornales | D5: 02 | E5: 198500 | G5: No | H5: No aplica
B6: 2 | C6: Gratificación Anual (Aguinaldo) | D6: 02 | E6: 5000 | F6: =113.14*30 -> 3394.2 | G6: No | H6: No aplica
B7: 3 | C7: Participación de los Trabajadores en las Utilidades PTU | D7: 02 | G7: No | H7: No aplica
B8: 4 | C8: Reembolso de Gastos Médicos Dentales y Hospitalarios | D8: 02 | G8: Sí | H8: No
B9: 5 | C9: Fondo de Ahorro | D9: 02 | F9: =E5*0.13 -> 25805 | G9: Sí | H9: No
B10: 6 | C10: Caja de ahorro | D10: 02 | G10: Sí | H10: Sí
B11: 9 | C11: Contribuciones a Cargo del Trabajador Pagadas por el Patrón | D11: 02 | G11: No | H11: No aplica
B12: 10 | C12: Premios por puntualidad | D12: 02 | E12: 18000 | G12: No | H12: No aplica
B13: 11 | C13: Prima de Seguro de vida | D13: 02 | G13: Sí | H13: No
B14: 12 | C14: Seguro de Gastos Médicos Mayores | D14: 02 | G14: Sí | H14: No
B15: 13 | C15: Cuotas Sindicales Pagadas por el Patrón | D15: 02 | G15: No | H15: No
B16: 14 | C16: Subsidios por incapacidad | D16: 02 | G16: Sí | H16: Sí
B17: 15 | C17: Becas para trabajadores y/o hijos | D17: 02 | G17: Sí | H17: Sí
B18: 19 | C18: Horas extra | D18: 02 | G18: No | H18: No aplica
B19: 20 | C19: Prima dominical | D19: 02 | G19: No | H19: No aplica
B20: 21 | C20: Prima vacacional | D20: 02 | G20: No | H20: No aplica
B21: 24 | C21: Seguro de retiro | D21: 02 | G21: Sí | H21: Sí
B22: 26 | C22: Reembolso por funeral | D22: 02 | G22: Sí | H22: No
B23: 27 | C23: Cuotas de seguridad social pagadas por el patrón | D23: 02 | G23: No | H23: No aplica
B24: 28 | C24: Comisiones | D24: 02 | G24: No | H24: No aplica
B25: 29 | C25: Vales de despensa | D25: 02 | F25: 50000 | G25: Sí | H25: Sí
B26: 30 | C26: Vales de restaurante | D26: 02 | F26: 18000 | G26: Sí | H26: Sí
B27: 31 | C27: Vales de gasolina | D27: 02 | G27: Sí | H27: Sí
B28: 32 | C28: Vales de ropa | D28: 02 | G28: Sí | H28: Sí
B29: 33 | C29: Ayuda para renta | D29: 02 | G29: Sí | H29: Sí
B30: 34 | C30: Ayuda para artículos escolares | D30: 02 | G30: Sí | H30: Sí
B31: 35 | C31: Ayuda para anteojos | D31: 02 | G31: Sí | H31: Sí
B32: 36 | C32: Ayuda para transporte | D32: 02 | G32: Sí | H32: Sí
B33: 37 | C33: Ayuda para gastos de funeral | D33: 02 | G33: Sí | H33: Sí
B34: 38 | C34: Otros ingresos por salarios | D34: 02 | G34: No | H34: No aplica | I34: Dependiendo lo que se pague
B35: 047 | C35: Alimentación diferentes a los establecidos en el Art 94 último párrafo LISR | D35: 02 | G35: Sí | H35: Sí
B36: 48 | C36: Habitación | D36: 02 | G36: Sí | H36: Sí
B37: 49 | C37: Premios por asistencia | D37: 02 | G37: No | H37: No aplica
B38: 50 | C38: Viáticos | D38: 02 | G38: No | H38: No aplica
D39: Totales | E39: =SUM(E5:E38) -> 221500 | F39: =SUM(F5:F38) -> 97199.2
B41: La exención aplicable a los ingresos obtenidos por concepto de prestaciones de previsión social se limitará cuando la suma de los ingresos por la prestación de servicios personales subordinados o aquellos que reciban, por parte de las sociedades cooperativas, los socios o miembros de las mismas y el monto de la exención exceda de una cantidad equivalente a siete veces el salario mínimo general del área geográfica del contribuyente, elevado al año; cuando dicha suma exceda de la cantidad citada, solamente se considerará como ingreso no sujeto al pago del impuesto un monto hasta de un salario mínimo general del área geográfica del contribuyente, elevado al año. Esta limitación en ningún caso deberá dar como resultado que la suma de los ingresos por la prestación de servicios personales subordinados o aquellos que reciban, por parte de las sociedades cooperativas, los socios o miembros de las mismas y el importe de la exención, sea inferior a siete veces el salario mínimo general del área geográfica del contribuyente, elevado al año Fundamento: Artículo 93 sexto párrafo LISR
C43: Valor de la UMA | D43: 113.14
C44: 7 UMAS elevadas al año | D44: =IFERROR(ROUND(D43*7*365,2),"") -> 289072.7 | E44: ①
C45: 1 UMA elevada al año | D45: =IFERROR(ROUND(D43*365,2),"") -> 41296.1 | E45: ③
B46: Se consideran ingresos por la prestación de un servicio personal subordinado, los salarios y demás prestaciones que deriven de una relación laboral, incluyendo la participación de los trabajadores en las utilidades de las empresas y las prestaciones percibidas como consecuencia de la terminación de la relación laboral. Fundamento: Artículo 94 primer párrafo LISR
C47: Ingresos por salarios | D47: =IFERROR(E39,"") -> 221500
C48: (+) Previsión social con límite | D48: =SUMIFS(F5:F38,G5:G38,"Sí",H5:H38,"Sí") -> 68000
C49: (=) Resultado I | D49: =SUM(D47:D48) -> 289500 | E49: ②
C50: Comprar contra 7 UMAS elevadas al año | D50: =D44 -> 289072.7 | E50: ①
B52: Sí ②>① entonces el límite de la exención es de 1 uma elevada al año | D52: =D45 -> 41296.1 | E52: ③
B54: Comprar los ingresos por salarios + el tope máximo de previsión social cuando la previsión social con límite es >= tope máximo
C55: Ingresos por salarios | D55: =IF(D49>D50,D47,"") -> 221500
C56: (+) Tope máximo de exención | D56: =IF(D49>D50,IF(D48>=D52,D52,D48),"") -> 41296.1
C57: (=) Resultado II | D57: =IF(D49>D50,SUM(D55:D56),"") -> 262796.1 | E57: ④
C59: El resultado ④ no puede ser inferior a ①
C61: Previsión social sin límite exenta | D61: =SUMIFS(F5:F38,G5:G38,"Sí",H5:H38,"No") -> 25805
C62: (+) Previsión social gravada | D62: =IFERROR(IF(D48>=D63,D48-D63,0),0) -> 427.3
C63: (+) Previsión social exenta con límite | D63: =IF(D57>=D50,D56,IF(D57<D50,D50-D55,"")) -> 67572.7
C64: (=) Total de previsión social | D64: =SUM(D61:D63) -> 93805
B67: Tipo de nómina | C67: O = Ordinaria
B68: Nómina semana 49
B69: c_TipoPercepcion | C69: Descripción | D69: Gravado | E69: Exento | G69: Descripción | H69: Importe
B70: 1 | C70: Sueldos, Salarios Rayas y Jornales | D70: 3500 | G70: Seguridad social | H70: 120
B71: 30 | C71: Vales de restaurante | D71: =D62 -> 427.3 | G71: ISR | H71: 650
G72: Ajuste en Vales de restaurante Exento | H72: =D71 -> 427.3
B73: c_TipoOtroPago | C73: Descripción | D73: Importe
B74: 2 | C74: Subsidio para el empleo (efectivamente entregado al trabajador). | D74: 0
C75: Subsidio al empleo causado | D75: 0

Sheet NOMINA (hidden)
AD1: =IF(AND(AA6>=2,AA6<=4,AE6>=1,AE6<=8),0,1) -> 1
AZ4: Venta acciones | BB4: Tiempo extra | BF4: Jubilaciones, pensiones, retiro | BK4: Pagos por separación | BP4: Incapacidades
B5: Fecha de emisión | C5: Fecha de timbrado | D5: UUID | E5: Concepto | F5: Serie | G5: Folio | H5: Forma de pago | I5: Metodo de pago | J5: Moneda | K5: Registro patronal | L5: Nombre del patron | M5: Riesgo de puesto | N5: Concepto riesgo de puesto (este dato no pertenece al XML) | O5: No. De empleado | P5: Nombre del empleado | Q5: Departamento | R5: Puesto | S5: Clave de la entidad federrativa | T5: Estado (este dato no pertenece al XML) | U5: CURP | V5: RFC | W5: No. SS | X5: Fecha inicio relación laboral | Y5: Salario diario integrado | Z5: Salario base de cotización | AA5: Tipo de regimen | AB5: Tipo de régimen (este dato no pertenece al XML) | AC5: Tipo de jornada | AD5: Tipo de jornada (este dato no pertenece al XML) | AE5: Tipo de contrato | AF5: Tipo de contrato (este dato no pertenece al XML) | AG5: Antigüedad | AH5: Fecha inicial pago | AI5: Fecha final pago | AJ5: Fecha de pago | AK5: Periodicidad de pago | AL5: Periodicidad de pago (este dato no pertenece al XML) | AM5: Clave de percepción | AN5: Percepción | AO5: Percepción de acuerdo al catálogo del SAT (este dato no pertenece al XML) | AP5: Percepción exenta | AQ5: Percepción gravado | AR5: Clave de deducción | AS5: Deducción | AT5: Deducción de acuerdo al catálogo del SAT (este dato no pertenece al XML) | AU5: Importe deducción | AV5: Total del comprobante | AW5: Tipo de relación | AX5: UUID tipo de relación | AY5: Subsidio al empleo causado | AZ5: Valor de mercado | BA5: Precio al otorgarse | BB5: Días | BC5: Tipo de horas | BD5: Horas extras | BE5: Importe pagado | BF5: Total en una sola exhibición | BG5: Total parcialidad | BH5: Monto diario | BI5: Ingreso acumulable | BJ5: Ingreso no acumulable | BK5: Total pagado | BL5: No. de años de servicio | BM5: Último sueldo mensual ordinario | BN5: Ingreso acumulable | BO5: Ingreso no acumulable | BP5: Días de incapacidad | BQ5: Tipo de incapacidad | BR5: Importe monetario | BS5: Dìas pagados | BT5: Ruta

Sheet VISORN (hidden)
C4: Ejercicio
B7: Concepto | G7: Total | H7: Enero | I7: Febrero | J7: Marzo | K7: Abril | L7: Mayo | M7: Junio | N7: Julio | O7: Agosto | P7: Septiembre | Q7: Octubre | R7: Noviembre | S7: Diciembre
C9: Comprobantes emitidos
C11: Pagos totales por sueldos y salarios
C13: Pagos por sueldos salarios
B14: (-) | C14: Total ajustes sueldos y salarios (gravados y exentos)
C16: Pagos totales por sueldos y salarios exentos
C17: Pagos por sueldos salarios exentos
B18: (-) | C18: Total ajustes sueldos y salarios exentos
C20: Pagos por aguinaldo exento
C21: Pagos por aguinaldo exento
B22: (-) | C22: Total ajustes aguinaldo exento
C24: Pagos por prima vacacional exenta
C25: Pagos por prima vacacional exento
B26: (-) | C26: Total ajustes prima vacacional exento
C28: Subsidio para el empleo que le correspondió a los trabajadores
C29: Total del subsidio para el empleo que le correspondió a los trabajadores
B30: (-) | C30: Total de ajustes al subsidio para el empleo que le correspondió a los trabajadores
C32: Subsidio para el empleo pagado en efectivo a los trabajadores
C33: Total del subsidio para el empleo pagado a los trabajadores
B34: (-) | C34: Total ajustes subsidio para el empleo pagado a los trabajadores
C36: ISR retenido
C37: Impuesto sobre la renta retenido
B38: (-) | C38: Total ajustes del impuesto sobre la renta retenido
B39: (+) | C39: Total ISR Retenido de ejercicio anterior
B40: (-) | C40: Total aplicación de saldo a favor por compensación anual
B41: (-) | C41: Total reintegro de ISR retenido en exceso de ejercicio anterior
C43: Resumen pagos de nómina
C44: Pagos de sueldos
C45: Pagos exentos de sueldos
C46: Pagos de asimilados a salarios
C49: Pagos totales por asimilados a salarios
C50: Número de CFDI emitidos
C51: Pagos por asimilados a salarios
B52: (-) | C52: Total ajustes sueldos y salarios (gravados y exentos)
C54: Impuesto retenido asimilados a salarios

Sheet DATOS (hidden)
B4: LICENCIA
B5: NOMBRE
B6: RFC
B8: No. para solicitar contraseña | D8: =IFERROR(MID(C4,2,1)&MID(C5,3,2)&MID(C6,5,3),"") -> 
B10: Contraseña para ingresar | D10: =C12&C13&C14&C15&C16&C17 ->  | I10: A | J10: 5
I11: B | J11: 9
B12: =IFERROR(MID($D$8,1,1),X) ->  | C12: =IFERROR(VLOOKUP(B12,$I$10:$J$51,2,FALSE),"") ->  | I12: C | J12: 2
B13: =IFERROR(MID($D$8,2,1),X) ->  | C13: =IFERROR(VLOOKUP(B13,$I$10:$J$51,2,FALSE),"") ->  | I13: D | J13: 4
B14: =IFERROR(MID($D$8,3,1),X) ->  | I14: E | J14: 8
B15: =IFERROR(MID($D$8,4,1),X) ->  | C15: =IFERROR(VLOOKUP(B15,$I$10:$J$51,2,FALSE),"") ->  | I15: F | J15: 3
B16: =IFERROR(MID($D$8,5,1),X) ->  | I16: G | J16: 7
B17: =IFERROR(MID($D$8,6,1),X) ->  | I17: H | J17: 2
I18: I | J18: 9
I19: J | J19: 6
I20: K | J20: 1
I21: L | J21: 8
I22: M | J22: 2
I23: N | J23: 0
I24: Ñ | J24: 4
I25: O | J25: 7
I26: P | J26: 3
I27: Q | J27: 9
I28: R | J28: 5
I29: S | J29: 2
I30: T | J30: 4
I31: U | J31: 7
I32: V | J32: 6
I33: W | J33: 5
I34: X | J34: 9
I35: Y | J35: 3
I36: Z | J36: 8
I37: & | J37: 4
I38: 0 | J38: A
I39: 1 | J39: D
I40: 2 | J40: G
I41: 3 | J41: T
I42: 4 | J42: R
I43: 5 | J43: H
I44: 6 | J44: C
I45: 7 | J45: K
I46: 8 | J46: O
I47: 9 | J47: P
I48: . | J48: &
I49: , | J49: Y
J50: K

Sheet TARIFA (hidden)
B1: Tarifas de retencionde 2023 anexo 8 RMF2023
B72: 2. Tarifa para el cálculo del impuesto correspondiente al ejercicio 2025
B73: Límite inferior | C73: Límite superior | D73: Cuota fija | E73: Por ciento para aplicarse sobre
E74: el excedente del límite inferior
B75: $ | C75: $ | D75: $ | E75: %
B76: 0.01 | C76: 8952.49 | D76: 0 | E76: 1.92
B77: 8952.5 | C77: 75984.55 | D77: 171.88 | E77: 6.4
B78: 75984.56 | C78: 133536.07 | D78: 4461.94 | E78: 10.88
B79: 133536.08 | C79: 155229.8 | D79: 10723.55 | E79: 16
B80: 155229.81 | C80: 185852.57 | D80: 14194.54 | E80: 17.92
B81: 185852.58 | C81: 374837.88 | D81: 19682.13 | E81: 21.36
B82: 374837.89 | C82: 590795.99 | D82: 60049.4 | E82: 23.52
B83: 590796 | C83: 1127926.84 | D83: 110842.74 | E83: 30
B84: 1127926.85 | C84: 1503902.46 | D84: 271981.99 | E84: 32
B85: 1503902.47 | C85: 4511707.37 | D85: 392294.17 | E85: 34
B86: 4511707.38 | C86: En adelante | D86: 1414947.85 | E86: 35

Sheet TARIFAS (hidden)
B4: 5. Tarifa aplicable durante 2022 para el cálculo de los pagos provisionales mensuales. | G4: Tabla del subsidio para el empleo aplicable a la tarifa del numeral 5 del rubro B.
B5: Límite inferior | C5: Límite superior | D5: Cuota fija | E5: Por ciento para aplicarse sobre | G5: Monto de ingresos que sirven de base para calcular el impuesto
E6: el excedente del límite inferior | G6: Para Ingresos de | H6: Hasta Ingresos de | I6: Cantidad de subsidio para el empleo mensual
B7: $ | C7: $ | D7: $ | E7: % | G7: $ | H7: $ | I7: $
B8: 0.01 | C8: 644.58 | D8: 0 | E8: 1.92 | G8: 0.01 | H8: 1768.96 | I8: 407.02
B9: 644.59 | C9: 5470.92 | D9: 12.38 | E9: 6.4 | G9: 1768.97 | H9: 2653.38 | I9: 406.83
B10: 5470.93 | C10: 9614.66 | D10: 321.26 | E10: 10.88 | G10: 2653.39 | H10: 3472.84 | I10: 406.62
B11: 9614.67 | C11: 11176.62 | D11: 772.1 | E11: 16 | G11: 3472.85 | H11: 3537.87 | I11: 392.77
B12: 11176.63 | C12: 13381.47 | D12: 1022.01 | E12: 17.92 | G12: 3537.88 | H12: 4446.15 | I12: 382.46
B13: 13381.48 | C13: 26988.5 | D13: 1417.12 | E13: 21.36 | G13: 4446.16 | H13: 4717.18 | I13: 354.23
B14: 26988.51 | C14: 42537.58 | D14: 4323.58 | E14: 23.52 | G14: 4717.19 | H14: 5335.42 | I14: 324.87
B15: 42537.59 | C15: 81211.25 | D15: 7980.73 | E15: 30 | G15: 5335.43 | H15: 6224.67 | I15: 294.63
B16: 81211.26 | C16: 108281.67 | D16: 19582.83 | E16: 32 | G16: 6224.68 | H16: 7113.9 | I16: 253.54
B17: 108281.68 | C17: 324845.01 | D17: 28245.36 | E17: 34 | G17: 7113.91 | H17: 7382.33 | I17: 217.61
B18: 324845.02 | C18: En adelante | D18: 101876.9 | E18: 35 | G18: 7382.34 | H18: En adelante | I18: 0
B22: Descripción | C22: Días
B23: Diario | C23: 1
B24: Semanal | C24: 7
B25: Catorcenal | C25: 14
B26: Quincenal | C26: 30
B27: Mensual | C27: 30
B28: Bimestral | C28: 60
B29: Unidad obra | C29: 30
B30: Comisión | C30: 30
B31: Precio alzado | C31: 30
B32: Decenal | C32: 10
B33: Otra Periodicidad | C33: 30
B37: VI. Tarifa del mes de enero de 2025, para efectuar los pagos provisionales mensuales a que se refiere el artículo 106 de la Ley del ISR, aplicable a los ingresos que perciban los contribuyentes a que se refiere el Título IV, Capítulo II, Sección I de la Ley del ISR.
B38: Límite inferior | C38: Límite superior | D38: Cuota fija | E38: Por ciento para aplicarse sobre el excedente del límite inferior
B39: $ | C39: $ | D39: $ | E39: %
B40: 0.01 | C40: 746.04 | D40: 0 | E40: 1.92
B41: 746.05 | C41: 6332.05 | D41: 14.32 | E41: 6.4
B42: 6332.06 | C42: 11128.01 | D42: 371.83 | E42: 10.88
B43: 11128.02 | C43: 12935.82 | D43: 893.63 | E43: 16
B44: 12935.83 | C44: 15487.71 | D44: 1182.88 | E44: 17.92
B45: 15487.72 | C45: 31236.49 | D45: 1640.18 | E45: 21.36
B46: 31236.5 | C46: 49233 | D46: 5004.12 | E46: 23.52
B47: 49233.01 | C47: 93993.9 | D47: 9236.89 | E47: 30
B48: 93993.91 | C48: 125325.2 | D48: 22665.17 | E48: 32
B49: 125325.21 | C49: 375975.61 | D49: 32691.18 | E49: 34
B50: 375975.62 | C50: En adelante | D50: 117912.32 | E50: 35
B52: Tarifa para el pago provisional del mes de febrero de 2025, aplicable a los ingresos que perciban los contribuyentes a que se refiere el Capítulo II, Sección I, del Título IV de la Ley del Impuesto sobre la Renta.
B53: Límite inferior | C53: Límite superior | D53: Cuota fija | E53: Por ciento para aplicarse sobre
E54: el excedente del límite inferior
B55: $ | C55: $ | D55: $ | E55: %
B56: 0.01 | C56: 1492.08 | D56: 0 | E56: 1.92
B57: 1492.09 | C57: 12664.1 | D57: 28.64 | E57: 6.4
B58: 12664.11 | C58: 22256.02 | D58: 743.66 | E58: 10.88
B59: 22256.03 | C59: 25871.64 | D59: 1787.26 | E59: 16
B60: 25871.65 | C60: 30975.42 | D60: 2365.76 | E60: 17.92
B61: 30975.43 | C61: 62472.98 | D61: 3280.36 | E61: 21.36
B62: 62472.99 | C62: 98466 | D62: 10008.24 | E62: 23.52
B63: 98466.01 | C63: 187987.8 | D63: 18473.78 | E63: 30
B64: 187987.81 | C64: 250650.4 | D64: 45330.34 | E64: 32
B65: 250650.41 | C65: 751951.22 | D65: 65382.36 | E65: 34
B66: 751951.23 | C66: En adelante | D66: 235824.64 | E66: 35
B68: Tarifa para el pago provisional del mes de marzo de 2025, aplicable a los ingresos que perciban los contribuyentes a que se refiere el Capítulo II, Sección I, del Título IV de la Ley del Impuesto sobre la Renta.
B69: Límite inferior | C69: Límite superior | D69: Cuota fija | E69: Por ciento para aplicarse sobre
E70: el excedente del límite inferior
B71: $ | C71: $ | D71: $ | E71: %
B72: 0.01 | C72: 2238.12 | D72: 0 | E72: 1.92
B73: 2238.13 | C73: 18996.15 | D73: 42.96 | E73: 6.4
B74: 18996.16 | C74: 33384.03 | D74: 1115.49 | E74: 10.88
B75: 33384.04 | C75: 38807.46 | D75: 2680.89 | E75: 16
B76: 38807.47 | C76: 46463.13 | D76: 3548.64 | E76: 17.92
B77: 46463.14 | C77: 93709.47 | D77: 4920.54 | E77: 21.36
B78: 93709.48 | C78: 147699 | D78: 15012.36 | E78: 23.52
B79: 147699.01 | C79: 281981.7 | D79: 27710.67 | E79: 30
B80: 281981.71 | C80: 375975.6 | D80: 67995.51 | E80: 32
B81: 375975.61 | C81: 1127926.83 | D81: 98073.54 | E81: 34
B82: 1127926.84 | C82: En adelante | D82: 353736.96 | E82: 35
B84: Tarifa para el pago provisional del mes de abril de 2025, aplicable a los ingresos que perciban los contribuyentes a que se refiere el Capítulo II, Sección I, del Título IV de la Ley del Impuesto sobre la Renta.
B85: Límite inferior | C85: Límite superior | D85: Cuota fija | E85: Por ciento para aplicarse sobre
E86: el excedente del límite inferior
B87: $ | C87: $ | D87: $ | E87: %
B88: 0.01 | C88: 2984.16 | D88: 0 | E88: 1.92
B89: 2984.17 | C89: 25328.2 | D89: 57.28 | E89: 6.4
B90: 25328.21 | C90: 44512.04 | D90: 1487.32 | E90: 10.88
B91: 44512.05 | C91: 51743.28 | D91: 3574.52 | E91: 16
B92: 51743.29 | C92: 61950.84 | D92: 4731.52 | E92: 17.92
B93: 61950.85 | C93: 124945.96 | D93: 6560.72 | E93: 21.36
B94: 124945.97 | C94: 196932 | D94: 20016.48 | E94: 23.52
B95: 196932.01 | C95: 375975.6 | D95: 36947.56 | E95: 30
B96: 375975.61 | C96: 501300.8 | D96: 90660.68 | E96: 32
B97: 501300.81 | C97: 1503902.44 | D97: 130764.72 | E97: 34
B98: 1503902.45 | C98: En adelante | D98: 471649.28 | E98: 35
B100: Tarifa para el pago provisional del mes de mayo de 2025, aplicable a los ingresos que perciban los contribuyentes a que se refiere el Capítulo II, Sección I, del Título IV de la Ley del Impuesto sobre la Renta.
B101: Límite inferior | C101: Límite superior | D101: Cuota fija | E101: Por ciento para aplicarse sobre
E102: el excedente del límite inferior
B103: $ | C103: $ | D103: $ | E103: %
B104: 0.01 | C104: 3730.2 | D104: 0 | E104: 1.92
B105: 3730.21 | C105: 31660.25 | D105: 71.6 | E105: 6.4
B106: 31660.26 | C106: 55640.05 | D106: 1859.15 | E106: 10.88
B107: 55640.06 | C107: 64679.1 | D107: 4468.15 | E107: 16
B108: 64679.11 | C108: 77438.55 | D108: 5914.4 | E108: 17.92
B109: 77438.56 | C109: 156182.45 | D109: 8200.9 | E109: 21.36
B110: 156182.46 | C110: 246165 | D110: 25020.6 | E110: 23.52
B111: 246165.01 | C111: 469969.5 | D111: 46184.45 | E111: 30
B112: 469969.51 | C112: 626626 | D112: 113325.85 | E112: 32
B113: 626626.01 | C113: 1879878.05 | D113: 163455.9 | E113: 34
B114: 1879878.06 | C114: En adelante | D114: 589561.6 | E114: 35
B116: Tarifa para el pago provisional del mes de junio de 2025, aplicable a los ingresos que perciban los contribuyentes a que se refiere el Capítulo II, Sección I, del Título IV de la Ley del Impuesto sobre la Renta.
B117: Límite inferior | C117: Límite superior | D117: Cuota fija | E117: Por ciento para aplicarse sobre
E118: el excedente del límite inferior
B119: $ | C119: $ | D119: $ | E119: %
B120: 0.01 | C120: 4476.24 | D120: 0 | E120: 1.92
B121: 4476.25 | C121: 37992.3 | D121: 85.92 | E121: 6.4
B122: 37992.31 | C122: 66768.06 | D122: 2230.98 | E122: 10.88
B123: 66768.07 | C123: 77614.92 | D123: 5361.78 | E123: 16
B124: 77614.93 | C124: 92926.26 | D124: 7097.28 | E124: 17.92
B125: 92926.27 | C125: 187418.94 | D125: 9841.08 | E125: 21.36
B126: 187418.95 | C126: 295398 | D126: 30024.72 | E126: 23.52
B127: 295398.01 | C127: 563963.4 | D127: 55421.34 | E127: 30
B128: 563963.41 | C128: 751951.2 | D128: 135991.02 | E128: 32
B129: 751951.21 | C129: 2255853.66 | D129: 196147.08 | E129: 34
B130: 2255853.67 | C130: En adelante | D130: 707473.92 | E130: 35
B132: Tarifa para el pago provisional del mes de julio de 2025, aplicable a los ingresos que perciban los contribuyentes a que se refiere el Capítulo II, Sección I, del Título IV de la Ley del Impuesto sobre la Renta.
B133: Límite inferior | C133: Límite superior | D133: Cuota fija | E133: Por ciento para aplicarse sobre
E134: el excedente del límite inferior
B135: $ | C135: $ | D135: $ | E135: %
B136: 0.01 | C136: 5222.28 | D136: 0 | E136: 1.92
B137: 5222.29 | C137: 44324.35 | D137: 100.24 | E137: 6.4
B138: 44324.36 | C138: 77896.07 | D138: 2602.81 | E138: 10.88
B139: 77896.08 | C139: 90550.74 | D139: 6255.41 | E139: 16
B140: 90550.75 | C140: 108413.97 | D140: 8280.16 | E140: 17.92
B141: 108413.98 | C141: 218655.43 | D141: 11481.26 | E141: 21.36
B142: 218655.44 | C142: 344631 | D142: 35028.84 | E142: 23.52
B143: 344631.01 | C143: 657957.3 | D143: 64658.23 | E143: 30
B144: 657957.31 | C144: 877276.4 | D144: 158656.19 | E144: 32
B145: 877276.41 | C145: 2631829.27 | D145: 228838.26 | E145: 34
B146: 2631829.28 | C146: En adelante | D146: 825386.24 | E146: 35
B148: Tarifa para el pago provisional del mes de agosto de 2025, aplicable a los ingresos que perciban los contribuyentes a que se refiere el Capítulo II, Sección I, del Título IV de la Ley del Impuesto sobre la Renta.
B149: Límite inferior | C149: Límite superior | D149: Cuota fija | E149: Por ciento para aplicarse sobre
E150: el excedente del límite inferior
B151: $ | C151: $ | D151: $ | E151: %
B152: 0.01 | C152: 5968.32 | D152: 0 | E152: 1.92
B153: 5968.33 | C153: 50656.4 | D153: 114.56 | E153: 6.4
B154: 50656.41 | C154: 89024.08 | D154: 2974.64 | E154: 10.88
B155: 89024.09 | C155: 103486.56 | D155: 7149.04 | E155: 16
B156: 103486.57 | C156: 123901.68 | D156: 9463.04 | E156: 17.92
B157: 123901.69 | C157: 249891.92 | D157: 13121.44 | E157: 21.36
B158: 249891.93 | C158: 393864 | D158: 40032.96 | E158: 23.52
B159: 393864.01 | C159: 751951.2 | D159: 73895.12 | E159: 30
B160: 751951.21 | C160: 1002601.6 | D160: 181321.36 | E160: 32
B161: 1002601.61 | C161: 3007804.88 | D161: 261529.44 | E161: 34
B162: 3007804.89 | C162: En adelante | D162: 943298.56 | E162: 35
B164: Tarifa para el pago provisional del mes de septiembre de 2025, aplicable a los ingresos que perciban los contribuyentes a que se refiere el Capítulo II, Sección I, del Título IV de la Ley del Impuesto sobre la Renta.
B165: Límite inferior | C165: Límite superior | D165: Cuota fija | E165: Por ciento para aplicarse sobre
E166: el excedente del límite inferior
B167: $ | C167: $ | D167: $ | E167: %
B168: 0.01 | C168: 6714.36 | D168: 0 | E168: 1.92
B169: 6714.37 | C169: 56988.45 | D169: 128.88 | E169: 6.4
B170: 56988.46 | C170: 100152.09 | D170: 3346.47 | E170: 10.88
B171: 100152.1 | C171: 116422.38 | D171: 8042.67 | E171: 16
B172: 116422.39 | C172: 139389.39 | D172: 10645.92 | E172: 17.92
B173: 139389.4 | C173: 281128.41 | D173: 14761.62 | E173: 21.36
B174: 281128.42 | C174: 443097 | D174: 45037.08 | E174: 23.52
B175: 443097.01 | C175: 845945.1 | D175: 83132.01 | E175: 30
B176: 845945.11 | C176: 1127926.8 | D176: 203986.53 | E176: 32
B177: 1127926.81 | C177: 3383780.49 | D177: 294220.62 | E177: 34
B178: 3383780.5 | C178: En adelante | D178: 1061210.88 | E178: 35
B180: Tarifa para el pago provisional del mes de octubre de 2025, aplicable a los ingresos que perciban los contribuyentes a que se refiere el Capítulo II, Sección I, del Título IV de la Ley del Impuesto sobre la Renta.
B181: Límite inferior | C181: Límite superior | D181: Cuota fija | E181: Por ciento para aplicarse sobre
E182: el excedente del límite inferior
B183: $ | C183: $ | D183: $ | E183: %
B184: 0.01 | C184: 7460.4 | D184: 0 | E184: 1.92
B185: 7460.41 | C185: 63320.5 | D185: 143.2 | E185: 6.4
B186: 63320.51 | C186: 111280.1 | D186: 3718.3 | E186: 10.88
B187: 111280.11 | C187: 129358.2 | D187: 8936.3 | E187: 16
B188: 129358.21 | C188: 154877.1 | D188: 11828.8 | E188: 17.92
B189: 154877.11 | C189: 312364.9 | D189: 16401.8 | E189: 21.36
B190: 312364.91 | C190: 492330 | D190: 50041.2 | E190: 23.52
B191: 492330.01 | C191: 939939 | D191: 92368.9 | E191: 30
B192: 939939.01 | C192: 1253252 | D192: 226651.7 | E192: 32
B193: 1253252.01 | C193: 3759756.1 | D193: 326911.8 | E193: 34
B194: 3759756.11 | C194: En adelante | D194: 1179123.2 | E194: 35
B196: Tarifa para el pago provisional del mes de noviembre de 2025, aplicable a los ingresos que perciban los contribuyentes a que se refiere el Capítulo II, Sección I, del Título IV de la Ley del Impuesto sobre la Renta.
B197: Límite inferior | C197: Límite superior | D197: Cuota fija | E197: Por ciento para aplicarse sobre
E198: el excedente del límite inferior
B199: $ | C199: $ | D199: $ | E199: %
B200: 0.01 | C200: 8206.44 | D200: 0 | E200: 1.92
B201: 8206.45 | C201: 69652.55 | D201: 157.52 | E201: 6.4
B202: 69652.56 | C202: 122408.11 | D202: 4090.13 | E202: 10.88
B203: 122408.12 | C203: 142294.02 | D203: 9829.93 | E203: 16
B204: 142294.03 | C204: 170364.81 | D204: 13011.68 | E204: 17.92
B205: 170364.82 | C205: 343601.39 | D205: 18041.98 | E205: 21.36
B206: 343601.4 | C206: 541563 | D206: 55045.32 | E206: 23.52
B207: 541563.01 | C207: 1033932.9 | D207: 101605.79 | E207: 30
B208: 1033932.91 | C208: 1378577.2 | D208: 249316.87 | E208: 32
B209: 1378577.21 | C209: 4135731.71 | D209: 359602.98 | E209: 34
B210: 4135731.72 | C210: En adelante | D210: 1297035.52 | E210: 35
B212: Tarifa para el pago provisional del mes de diciembre de 2025, aplicable a los ingresos que perciban los contribuyentes a que se refiere el Capítulo II, Sección I, del Título IV de la Ley del Impuesto sobre la Renta.
B213: Límite inferior | C213: Límite superior | D213: Cuota fija | E213: Por ciento para aplicarse sobre
E214: el excedente del límite inferior
B215: $ | C215: $ | D215: $ | E215: %
B216: 0.01 | C216: 8952.49 | D216: 0 | E216: 1.92
B217: 8952.5 | C217: 75984.55 | D217: 171.88 | E217: 6.4
B218: 75984.56 | C218: 133536.07 | D218: 4461.94 | E218: 10.88
B219: 133536.08 | C219: 155229.8 | D219: 10723.55 | E219: 16
B220: 155229.81 | C220: 185852.57 | D220: 14194.54 | E220: 17.92
... 21 more rows

Sheet CATALOGO (hidden)
B4: c_RiesgoPuesto | C4: Descripción | D4: Fecha inicio de vigencia | E4: Fecha fin de vigencia | H4: c_TipoPercepcion | I4: Descripción | J4: Fecha inicio de vigencia | K4: Fecha fin de vigencia
B5: 1 | C5: Clase I | D5: 2017-01-01 | H5: 1 | I5: Sueldos, Salarios Rayas y Jornales | J5: 2016-11-01
B6: 2 | C6: Clase II | D6: 2017-01-01 | H6: 2 | I6: Gratificación Anual (Aguinaldo) | J6: 2016-11-01
B7: 3 | C7: Clase III | D7: 2017-01-01 | H7: 3 | I7: Participación de los Trabajadores en las Utilidades PTU | J7: 2016-11-01
B8: 4 | C8: Clase IV | D8: 2017-01-01 | H8: 4 | I8: Reembolso de Gastos Médicos Dentales y Hospitalarios | J8: 2016-11-01
B9: 5 | C9: Clase V | D9: 2017-01-01 | H9: 5 | I9: Fondo de Ahorro | J9: 2016-11-01
B10: 99 | C10: No aplica | D10: 2017-08-13 | H10: 6 | I10: Caja de ahorro | J10: 2016-11-01
H11: 9 | I11: Contribuciones a Cargo del Trabajador Pagadas por el Patrón | J11: 2016-11-01
H12: 10 | I12: Premios por puntualidad | J12: 2016-11-01
B13: c_TipoRegimen | C13: Descripción | D13: Fecha inicio de vigencia | E13: Fecha fin de vigencia | H13: 11 | I13: Prima de Seguro de vida | J13: 2016-11-01
B14: 2 | C14: Sueldos | D14: 2017-01-01 | H14: 12 | I14: Seguro de Gastos Médicos Mayores | J14: 2016-11-01
B15: 3 | C15: Jubilados | D15: 2017-01-01 | H15: 13 | I15: Cuotas Sindicales Pagadas por el Patrón | J15: 2016-11-01
B16: 4 | C16: Pensionados | D16: 2017-01-01 | H16: 14 | I16: Subsidios por incapacidad | J16: 2016-11-01
B17: 5 | C17: Asimilados Miembros Sociedades Cooperativas Produccion | D17: 2017-01-01 | H17: 15 | I17: Becas para trabajadores y/o hijos | J17: 2016-11-01
B18: 6 | C18: Asimilados Integrantes Sociedades Asociaciones Civiles | D18: 2017-01-01 | H18: 19 | I18: Horas extra | J18: 2016-11-01
B19: 7 | C19: Asimilados Miembros consejos | D19: 2017-01-01 | H19: 20 | I19: Prima dominical | J19: 2016-11-01
B20: 8 | C20: Asimilados comisionistas | D20: 2017-01-01 | H20: 21 | I20: Prima vacacional | J20: 2016-11-01
B21: 9 | C21: Asimilados Honorarios | D21: 2017-01-01 | H21: 22 | I21: Prima por antigüedad | J21: 2016-11-01
B22: 10 | C22: Asimilados acciones | D22: 2017-01-01 | H22: 23 | I22: Pagos por separación | J22: 2016-11-01
B23: 11 | C23: Asimilados otros | D23: 2017-01-01 | H23: 24 | I23: Seguro de retiro | J23: 2016-11-01
B24: 12 | C24: Jubilados o Pensionados | D24: 2017-03-27 | H24: 25 | I24: Indemnizaciones | J24: 2016-11-01
B25: 13 | C25: Indemnización o Separación | D25: 2018-10-15 | H25: 26 | I25: Reembolso por funeral | J25: 2016-11-01
B26: 99 | C26: Otro Regimen | D26: 2017-01-01 | H26: 27 | I26: Cuotas de seguridad social pagadas por el patrón | J26: 2016-11-01
H27: 28 | I27: Comisiones | J27: 2016-11-01
H28: 29 | I28: Vales de despensa | J28: 2016-11-01
B29: c_TipoContrato | C29: Descripción | H29: 30 | I29: Vales de restaurante | J29: 2016-11-01
B30: 1 | C30: Contrato de trabajo por tiempo indeterminado | H30: 31 | I30: Vales de gasolina | J30: 2016-11-01
B31: 2 | C31: Contrato de trabajo para obra determinada | H31: 32 | I31: Vales de ropa | J31: 2016-11-01
B32: 3 | C32: Contrato de trabajo por tiempo determinado | H32: 33 | I32: Ayuda para renta | J32: 2016-11-01
B33: 4 | C33: Contrato de trabajo por temporada | H33: 34 | I33: Ayuda para artículos escolares | J33: 2016-11-01
B34: 5 | C34: Contrato de trabajo sujeto a prueba | H34: 35 | I34: Ayuda para anteojos | J34: 2016-11-01
B35: 6 | C35: Contrato de trabajo con capacitación inicial | H35: 36 | I35: Ayuda para transporte | J35: 2016-11-01
B36: 7 | C36: Modalidad de contratación por pago de hora laborada | H36: 37 | I36: Ayuda para gastos de funeral | J36: 2016-11-01
B37: 8 | C37: Modalidad de trabajo por comisión laboral | H37: 38 | I37: Otros ingresos por salarios | J37: 2016-11-01
B38: 9 | C38: Modalidades de contratación donde no existe relación de trabajo | H38: 39 | I38: Jubilaciones, pensiones o haberes de retiro | J38: 2016-11-01
B39: 10 | C39: Jubilación, pensión, retiro. | H39: 44 | I39: Jubilaciones, pensiones o haberes de retiro en parcialidades | J39: 2016-11-01
B40: 99 | C40: Otro contrato | H40: 45 | I40: Ingresos en acciones o títulos valor que representan bienes | J40: 2016-11-01
H41: 046 | I41: Ingresos asimilados a salarios | J41: 2016-11-01
H42: 047 | I42: Alimentación | J42: 2016-11-01
B43: c_PeriodicidadPago | C43: Descripción | D43: Fecha inicio de vigencia | E43: Fecha fin de vigencia | H43: 48 | I43: Habitación | J43: 2016-11-01
B44: 1 | C44: Diario | D44: 2016-11-01 | H44: 49 | I44: Premios por asistencia | J44: 2016-11-01
B45: 2 | C45: Semanal | D45: 2016-11-01 | H45: 50 | I45: Viáticos | J45: 2017-01-06
B46: 3 | C46: Catorcenal | D46: 2016-11-01 | H46: 51 | I46: Pagos por gratificaciones, primas, compensaciones, recompensas u otros a extrabajadores derivados de jubilación en parcialidades | J46: 2018-10-15
B47: 4 | C47: Quincenal | D47: 2016-11-01 | H47: 52 | I47: Pagos que se realicen a extrabajadores que obtengan una jubilación en parcialidades derivados de la ejecución de resoluciones judicial o de un laudo | J47: 2018-10-15
B48: 5 | C48: Mensual | D48: 2016-11-01 | H48: 53 | I48: Pagos que se realicen a extrabajadores que obtengan una jubilación en una sola exhibición derivados de la ejecución de resoluciones judicial o de un laudo | J48: 2018-10-15
B49: 6 | C49: Bimestral | D49: 2016-11-01
B50: 7 | C50: Unidad obra | D50: 2016-11-01
B51: 8 | C51: Comisión | D51: 2016-11-01 | H51: c_TipoOtroPago | I51: Descripción | J51: Fecha inicio de vigencia | K51: Fecha fin de vigencia
B52: 9 | C52: Precio alzado | D52: 2016-11-01 | H52: 1 | I52: Reintegro de ISR pagado en exceso (siempre que no haya sido enterado al SAT). | J52: 2017-01-01
B53: 10 | C53: Decenal | D53: 2017-01-19 | H53: 2 | I53: Subsidio para el empleo (efectivamente entregado al trabajador). | J53: 2017-01-01
B54: 99 | C54: Otra Periodicidad | D54: 2016-11-01 | H54: 3 | I54: Viáticos (entregados al trabajador). | J54: 2017-01-01
H55: 4 | I55: Aplicación de saldo a favor por compensación anual. | J55: 2017-01-01
H56: 5 | I56: Reintegro de ISR retenido en exceso de ejercicio anterior (siempre que no haya sido enterado al SAT). | J56: 2017-12-05
B57: c_TipoIncapacidad | C57: Descripción | H57: 999 | I57: Pagos distintos a los listados y que no deben considerarse como ingreso por sueldos, salarios o ingresos asimilados. | J57: 2017-01-01
B58: 1 | C58: Riesgo de trabajo.
B59: 2 | C59: Enfermedad en general.
B60: 3 | C60: Maternidad. | H60: c_TipoDeduccion | I60: Descripción | J60: Fecha inicio de vigencia | K60: Fecha fin de vigencia
H61: 1 | I61: Seguridad social | J61: 2016-11-01
H62: 2 | I62: ISR | J62: 2016-11-01
B63: c_TipoJornada | C63: Descripción | H63: 3 | I63: Aportaciones a retiro, cesantía en edad avanzada y vejez. | J63: 2016-11-01
B64: 1 | C64: Diurna | H64: 4 | I64: Otros | J64: 2016-11-01
B65: 2 | C65: Nocturna | H65: 5 | I65: Aportaciones a Fondo de vivienda | J65: 2016-11-01
B66: 3 | C66: Mixta | H66: 6 | I66: Descuento por incapacidad | J66: 2016-11-01
B67: 4 | C67: Por hora | H67: 7 | I67: Pensión alimenticia | J67: 2016-11-01
B68: 5 | C68: Reducida | H68: 8 | I68: Renta | J68: 2016-11-01
B69: 6 | C69: Continuada | H69: 9 | I69: Préstamos provenientes del Fondo Nacional de la Vivienda para los Trabajadores | J69: 2016-11-01
B70: 7 | C70: Partida | H70: 10 | I70: Pago por crédito de vivienda | J70: 2016-11-01
B71: 8 | C71: Por turnos | H71: 11 | I71: Pago de abonos INFONACOT | J71: 2016-11-01
B72: 99 | C72: Otra Jornada | H72: 12 | I72: Anticipo de salarios | J72: 2016-11-01
H73: 13 | I73: Pagos hechos con exceso al trabajador | J73: 2016-11-01
H74: 14 | I74: Errores | J74: 2016-11-01
B75: c_Estado | C75: c_Pais | D75: Nombre del estado | H75: 15 | I75: Pérdidas | J75: 2016-11-01
B76: AGU | C76: MEX | D76: Aguascalientes | H76: 16 | I76: Averías | J76: 2016-11-01
B77: BCN | C77: MEX | D77: Baja California | H77: 17 | I77: Adquisición de artículos producidos por la empresa o establecimiento | J77: 2016-11-01
B78: BCS | C78: MEX | D78: Baja California Sur | H78: 18 | I78: Cuotas para la constitución y fomento de sociedades cooperativas y de cajas de ahorro | J78: 2016-11-01
B79: CAM | C79: MEX | D79: Campeche | H79: 19 | I79: Cuotas sindicales | J79: 2016-11-01
B80: CHP | C80: MEX | D80: Chiapas | H80: 20 | I80: Ausencia (Ausentismo) | J80: 2016-11-01
B81: CHH | C81: MEX | D81: Chihuahua | H81: 21 | I81: Cuotas obrero patronales | J81: 2016-11-01
B82: COA | C82: MEX | D82: Coahuila | H82: 22 | I82: Impuestos Locales | J82: 2016-11-01
B83: COL | C83: MEX | D83: Colima | H83: 23 | I83: Aportaciones voluntarias | J83: 2016-11-01
B84: DIF | C84: MEX | D84: Ciudad de México | H84: 24 | I84: Ajuste en Gratificación Anual (Aguinaldo) Exento | J84: 2017-01-06
B85: DUR | C85: MEX | D85: Durango | H85: 25 | I85: Ajuste en Gratificación Anual (Aguinaldo) Gravado | J85: 2017-01-06
B86: GUA | C86: MEX | D86: Guanajuato | H86: 26 | I86: Ajuste en Participación de los Trabajadores en las Utilidades PTU Exento | J86: 2017-01-06
B87: GRO | C87: MEX | D87: Guerrero | H87: 27 | I87: Ajuste en Participación de los Trabajadores en las Utilidades PTU Gravado | J87: 2017-01-06
B88: HID | C88: MEX | D88: Hidalgo | H88: 28 | I88: Ajuste en Reembolso de Gastos Médicos Dentales y Hospitalarios Exento | J88: 2017-01-06
B89: JAL | C89: MEX | D89: Jalisco | H89: 29 | I89: Ajuste en Fondo de ahorro Exento | J89: 2017-01-06
B90: MEX | C90: MEX | D90: Estado de México | H90: 30 | I90: Ajuste en Caja de ahorro Exento | J90: 2017-01-06
B91: MIC | C91: MEX | D91: Michoacán | H91: 31 | I91: Ajuste en Contribuciones a Cargo del Trabajador Pagadas por el Patrón Exento | J91: 2017-01-06
B92: MOR | C92: MEX | D92: Morelos | H92: 32 | I92: Ajuste en Premios por puntualidad Gravado | J92: 2017-01-06
B93: NAY | C93: MEX | D93: Nayarit | H93: 33 | I93: Ajuste en Prima de Seguro de vida Exento | J93: 2017-01-06
B94: NLE | C94: MEX | D94: Nuevo León | H94: 34 | I94: Ajuste en Seguro de Gastos Médicos Mayores Exento | J94: 2017-01-06
B95: OAX | C95: MEX | D95: Oaxaca | H95: 35 | I95: Ajuste en Cuotas Sindicales Pagadas por el Patrón Exento | J95: 2017-01-06
B96: PUE | C96: MEX | D96: Puebla | H96: 36 | I96: Ajuste en Subsidios por incapacidad Exento | J96: 2017-01-06
B97: QUE | C97: MEX | D97: Querétaro | H97: 37 | I97: Ajuste en Becas para trabajadores y/o hijos Exento | J97: 2017-01-06
B98: ROO | C98: MEX | D98: Quintana Roo | H98: 38 | I98: Ajuste en Horas extra Exento | J98: 2017-01-06
B99: SLP | C99: MEX | D99: San Luis Potosí | H99: 39 | I99: Ajuste en Horas extra Gravado | J99: 2017-01-06
B100: SIN | C100: MEX | D100: Sinaloa | H100: 40 | I100: Ajuste en Prima dominical Exento | J100: 2017-01-06
B101: SON | C101: MEX | D101: Sonora | H101: 41 | I101: Ajuste en Prima dominical Gravado | J101: 2017-01-06
B102: TAB | C102: MEX | D102: Tabasco | H102: 42 | I102: Ajuste en Prima vacacional Exento | J102: 2017-01-06
B103: TAM | C103: MEX | D103: Tamaulipas | H103: 43 | I103: Ajuste en Prima vacacional Gravado | J103: 2017-01-06
B104: TLA | C104: MEX | D104: Tlaxcala | H104: 44 | I104: Ajuste en Prima por antigüedad Exento | J104: 2017-01-06
B105: VER | C105: MEX | D105: Veracruz | H105: 45 | I105: Ajuste en Prima por antigüedad Gravado | J105: 2017-01-06
B106: YUC | C106: MEX | D106: Yucatán | H106: 46 | I106: Ajuste en Pagos por separación Exento | J106: 2017-01-06
B107: ZAC | C107: MEX | D107: Zacatecas | H107: 47 | I107: Ajuste en Pagos por separación Gravado | J107: 2017-01-06
B108: AL | C108: USA | D108: Alabama | H108: 48 | I108: Ajuste en Seguro de retiro Exento | J108: 2017-01-06
B109: AK | C109: USA | D109: Alaska | H109: 49 | I109: Ajuste en Indemnizaciones Exento | J109: 2017-01-06
B110: AZ | C110: USA | D110: Arizona | H110: 50 | I110: Ajuste en Indemnizaciones Gravado | J110: 2017-01-06
B111: AR | C111: USA | D111: Arkansas | H111: 51 | I111: Ajuste en Reembolso por funeral Exento | J111: 2017-01-06
B112: CA | C112: USA | D112: California | H112: 52 | I112: Ajuste en Cuotas de seguridad social pagadas por el patrón Exento | J112: 2017-01-06
B113: NC | C113: USA | D113: Carolina del Norte | H113: 53 | I113: Ajuste en Comisiones Gravado | J113: 2017-01-06
B114: SC | C114: USA | D114: Carolina del Sur | H114: 54 | I114: Ajuste en Vales de despensa Exento | J114: 2017-01-06
B115: CO | C115: USA | D115: Colorado | H115: 55 | I115: Ajuste en Vales de restaurante Exento | J115: 2017-01-06
B116: CT | C116: USA | D116: Connecticut | H116: 56 | I116: Ajuste en Vales de gasolina Exento | J116: 2017-01-06
B117: ND | C117: USA | D117: Dakota del Norte | H117: 57 | I117: Ajuste en Vales de ropa Exento | J117: 2017-01-06
B118: SD | C118: USA | D118: Dakota del Sur | H118: 58 | I118: Ajuste en Ayuda para renta Exento | J118: 2017-01-06
B119: DE | C119: USA | D119: Delaware | H119: 59 | I119: Ajuste en Ayuda para artículos escolares Exento | J119: 2017-01-06
B120: FL | C120: USA | D120: Florida | H120: 60 | I120: Ajuste en Ayuda para anteojos Exento | J120: 2017-01-06
B121: GA | C121: USA | D121: Georgia | H121: 61 | I121: Ajuste en Ayuda para transporte Exento | J121: 2017-01-06
B122: HI | C122: USA | D122: Hawái | H122: 62 | I122: Ajuste en Ayuda para gastos de funeral Exento | J122: 2017-01-06
B123: ID | C123: USA | D123: Idaho | H123: 63 | I123: Ajuste en Otros ingresos por salarios Exento | J123: 2017-01-06
B124: IL | C124: USA | D124: Illinois | H124: 64 | I124: Ajuste en Otros ingresos por salarios Gravado | J124: 2017-01-06
B125: IN | C125: USA | D125: Indiana | H125: 65 | I125: Ajuste en Jubilaciones, pensiones o haberes de retiro en una sola exhibición Exento | J125: 2018-10-15
B126: IA | C126: USA | D126: Iowa | H126: 66 | I126: Ajuste en Jubilaciones, pensiones o haberes de retiro en una sola exhibición Gravado | J126: 2018-10-15
B127: KS | C127: USA | D127: Kansas | H127: 67 | I127: Ajuste en Pagos por separación Acumulable | J127: 2017-01-06
B128: KY | C128: USA | D128: Kentucky | H128: 68 | I128: Ajuste en Pagos por separación No acumulable | J128: 2017-01-06
B129: LA | C129: USA | D129: Luisiana | H129: 69 | I129: Ajuste en Jubilaciones, pensiones o haberes de retiro en parcialidades Exento | J129: 2018-10-15
B130: ME | C130: USA | D130: Maine | H130: 70 | I130: Ajuste en Jubilaciones, pensiones o haberes de retiro en parcialidades Gravado | J130: 2018-10-15
B131: MD | C131: USA | D131: Maryland | H131: 71 | I131: Ajuste en Subsidio para el empleo (efectivamente entregado al trabajador) | J131: 2017-01-06
B132: MA | C132: USA | D132: Massachusetts | H132: 72 | I132: Ajuste en Ingresos en acciones o títulos valor que representan bienes Exento | J132: 2017-01-06 | K132: 2018-10-14
B133: MI | C133: USA | D133: Míchigan | H133: 73 | I133: Ajuste en Ingresos en acciones o títulos valor que representan bienes Gravado | J133: 2017-01-06
B134: MN | C134: USA | D134: Minnesota | H134: 74 | I134: Ajuste en Alimentación Exento | J134: 2017-01-06
B135: MS | C135: USA | D135: Misisipi | H135: 75 | I135: Ajuste en Alimentación Gravado | J135: 2017-01-06
B136: MO | C136: USA | D136: Misuri | H136: 76 | I136: Ajuste en Habitación Exento | J136: 2017-01-06
B137: MT | C137: USA | D137: Montana | H137: 77 | I137: Ajuste en Habitación Gravado | J137: 2017-01-06
B138: NE | C138: USA | D138: Nebraska | H138: 78 | I138: Ajuste en Premios por asistencia | J138: 2017-01-06
B139: NV | C139: USA | D139: Nevada | H139: 79 | I139: Ajuste en Pagos distintos a los listados y que no deben considerarse como ingreso por sueldos, salarios o ingresos asimilados. | J139: 2017-01-06
B140: NJ | C140: USA | D140: Nueva Jersey | H140: 80 | I140: Ajuste en Viáticos gravados | J140: 2017-01-06
B141: NY | C141: USA | D141: Nueva York | H141: 81 | I141: Ajuste en Viáticos (entregados al trabajador) | J141: 2017-01-06
B142: NH | C142: USA | D142: Nuevo Hampshire | H142: 082 | I142: Ajuste en Fondo de ahorro Gravado | J142: 2017-01-06
B143: NM | C143: USA | D143: Nuevo México | H143: 083 | I143: Ajuste en Caja de ahorro Gravado | J143: 2017-01-06
B144: OH | C144: USA | D144: Ohio | H144: 084 | I144: Ajuste en Prima de Seguro de vida Gravado | J144: 2017-01-06
B145: OK | C145: USA | D145: Oklahoma | H145: 085 | I145: Ajuste en Seguro de Gastos Médicos Mayores Gravado | J145: 2017-01-06
B146: OR | C146: USA | D146: Oregón | H146: 086 | I146: Ajuste en Subsidios por incapacidad Gravado | J146: 2017-01-06
B147: PA | C147: USA | D147: Pensilvania | H147: 087 | I147: Ajuste en Becas para trabajadores y/o hijos Gravado | J147: 2017-01-06
B148: RI | C148: USA | D148: Rhode Island | H148: 088 | I148: Ajuste en Seguro de retiro Gravado | J148: 2017-01-06
B149: TN | C149: USA | D149: Tennessee | H149: 089 | I149: Ajuste en Vales de despensa Gravado | J149: 2017-01-06
B150: TX | C150: USA | D150: Texas | H150: 090 | I150: Ajuste en Vales de restaurante Gravado | J150: 2017-01-06
B151: UT | C151: USA | D151: Utah | H151: 091 | I151: Ajuste en Vales de gasolina Gravado | J151: 2017-01-06
B152: VT | C152: USA | D152: Vermont | H152: 092 | I152: Ajuste en Vales de ropa Gravado | J152: 2017-01-06
B153: VA | C153: USA | D153: Virginia | H153: 093 | I153: Ajuste en Ayuda para renta Gravado | J153: 2017-01-06
B154: WV | C154: USA | D154: Virginia Occidental | H154: 094 | I154: Ajuste en Ayuda para artículos escolares Gravado | J154: 2017-01-06
B155: WA | C155: USA | D155: Washington | H155: 095 | I155: Ajuste en Ayuda para anteojos Gravado | J155: 2017-01-06
B156: WI | C156: USA | D156: Wisconsin | H156: 096 | I156: Ajuste en Ayuda para transporte Gravado | J156: 2017-01-06
B157: WY | C157: USA | D157: Wyoming | H157: 097 | I157: Ajuste en Ayuda para gastos de funeral Gravado | J157: 2017-01-06
B158: ON | C158: CAN | D158: Ontario | H158: 098 | I158: Ajuste a ingresos asimilados a salarios gravados | J158: 2017-01-06
B159: QC | C159: CAN | D159: Quebec | H159: 099 | I159: Ajuste a ingresos por sueldos y salarios gravados | J159: 2017-01-06
B160: NS | C160: CAN | D160: Nueva Escocia | H160: 100 | I160: Ajuste en Viáticos exentos | J160: 2017-01-06
B161: NB | C161: CAN | D161: Nuevo Brunswick | H161: 101 | I161: ISR Retenido de ejercicio anterior | J161: 2017-12-05
B162: MB | C162: CAN | D162: Manitoba | H162: 102 | I162: Ajuste a pagos por gratificaciones, primas, compensaciones, recompensas u otros a extrabajadores derivados de jubilación en parcialidades, gravados | J162: 2018-10-15
B163: BC | C163: CAN | D163: Columbia Británica | H163: 103 | I163: Ajuste a pagos que se realicen a extrabajadores que obtengan una jubilación en parcialidades derivados de la ejecución de una resolución judicial o de un laudo gravados | J163: 2018-10-15
B164: PE | C164: CAN | D164: Isla del Príncipe Eduardo | H164: 104 | I164: Ajuste a pagos que se realicen a extrabajadores que obtengan una jubilación en parcialidades derivados de la ejecución de una resolución judicial o de un laudo exentos | J164: 2018-10-15
B165: SK | C165: CAN | D165: Saskatchewan | H165: 105 | I165: Ajuste a pagos que se realicen a extrabajadores que obtengan una jubilación en una sola exhibición derivados de la ejecución de una resolución judicial o de un laudo gravados | J165: 2018-10-15
B166: AB | C166: CAN | D166: Alberta | H166: 106 | I166: Ajuste a pagos que se realicen a extrabajadores que obtengan una jubilación en una sola exhibición derivados de la ejecución de una resolución judicial o de un laudo exentos | J166: 2018-10-15
B167: NL | C167: CAN | D167: Terranova y Labrador
B168: NT | C168: CAN | D168: Territorios del Noroeste
B169: YT | C169: CAN | D169: Yukón
B170: UN | C170: CAN | D170: Nunavut
B185: c_TipoPercepcion | C185: Descripción | D185: Gravado | E185: Exento | F185: Régimen | G185: Régimen consula | H185: c_TipoRegimen | I185: Descripción
B186: 1 | C186: Sueldos, Salarios Rayas y Jornales | D186: a | E186: r | F186: 2 | G186: =F186-B186 -> 1 | H186: 2 | I186: Sueldos (Incluye ingresos señalados en la fracción I del artículo 94 de LISR) | J186: 2
B187: 2 | C187: Gratificación Anual (Aguinaldo) | D187: a | E187: a | F187: 2 | G187: =F187-B187 -> 0 | H187: 3 | I187: Jubilados | J187: 3412
B188: 3 | C188: Participación de los Trabajadores en las Utilidades PTU | D188: a | E188: a | F188: 2 | G188: -1 | H188: 4 | I188: Pensionados | J188: 3412
B189: 4 | C189: Reembolso de Gastos Médicos Dentales y Hospitalarios | D189: a | E189: a | F189: 2 | G189: -2 | H189: 5 | I189: Asimilados Miembros Sociedades Cooperativas Produccion | J189: 567891011
B190: 5 | C190: Fondo de Ahorro | D190: a | E190: a | F190: 2 | G190: -3 | H190: 6 | I190: Asimilados Integrantes Sociedades Asociaciones Civiles | J190: 567891011
B191: 6 | C191: Caja de ahorro | D191: a | E191: a | F191: 2 | G191: -4 | H191: 7 | I191: Asimilados Miembros consejos | J191: 567891011
B192: 9 | C192: Contribuciones a Cargo del Trabajador Pagadas por el Patrón | D192: a | E192: r | F192: 2 | G192: -7 | H192: 8 | I192: Asimilados comisionistas | J192: 567891011
B193: 10 | C193: Premios por puntualidad | D193: a | E193: r | F193: 2 | G193: -8 | H193: 9 | I193: Asimilados Honorarios | J193: 567891011
B194: 11 | C194: Prima de Seguro de vida | D194: a | E194: a | F194: 2 | G194: -9 | H194: 10 | I194: Asimilados acciones | J194: 567891011
B195: 12 | C195: Seguro de Gastos Médicos Mayores | D195: a | E195: a | F195: 2 | G195: -10 | H195: 11 | I195: Asimilados otros | J195: 567891011
B196: 13 | C196: Cuotas Sindicales Pagadas por el Patrón | D196: a | E196: a | F196: 2 | G196: -11 | H196: 12 | I196: Jubilados o Pensionados | J196: 3412
B197: 14 | C197: Subsidios por incapacidad | D197: a | E197: a | F197: 2 | G197: -12 | H197: 13 | I197: Indemnización o Separación | J197: 13
B198: 15 | C198: Becas para trabajadores y/o hijos | D198: a | E198: a | F198: 2 | G198: -13 | H198: 99 | I198: Otro Regimen | J198: 99
B199: 19 | C199: Horas extra | D199: a | E199: a | F199: 2 | G199: -17
B200: 20 | C200: Prima dominical | D200: a | E200: a | F200: 2 | G200: -18
B201: 21 | C201: Prima vacacional | D201: a | E201: a | F201: 2 | G201: -19
B202: 24 | C202: Seguro de retiro | D202: a | E202: a | F202: 2 | G202: -22
B203: 26 | C203: Reembolso por funeral | D203: a | E203: a | F203: 2 | G203: -24
B204: 27 | C204: Cuotas de seguridad social pagadas por el patrón | D204: r | E204: a | F204: 2 | G204: -25
B205: 28 | C205: Comisiones | D205: a | E205: r | F205: 2 | G205: -26
B206: 29 | C206: Vales de despensa | D206: a | E206: a | F206: 2 | G206: -27
B207: 30 | C207: Vales de restaurante | D207: a | E207: a | F207: 2 | G207: -28
B208: 31 | C208: Vales de gasolina | D208: a | E208: a | F208: 2 | G208: -29
B209: 32 | C209: Vales de ropa | D209: a | E209: a | F209: 2 | G209: -30
B210: 33 | C210: Ayuda para renta | D210: a | E210: a | F210: 2 | G210: -31
B211: 34 | C211: Ayuda para artículos escolares | D211: a | E211: a | F211: 2 | G211: -32
B212: 35 | C212: Ayuda para anteojos | D212: a | E212: a | F212: 2 | G212: -33
B213: 36 | C213: Ayuda para transporte | D213: a | E213: a | F213: 2 | G213: -34
B214: 37 | C214: Ayuda para gastos de funeral | D214: a | E214: a | F214: 2 | G214: -35
B215: 38 | C215: Otros ingresos por salarios | D215: a | E215: a | F215: 2 | G215: -36
B216: 47 | C216: Alimentación diferentes a los establecidos en el Art 94 último párrafo LISR | D216: a | E216: a | F216: 2 | G216: -45
B217: 48 | C217: Habitación | D217: a | E217: a | F217: 2 | G217: -46
... 12 more rows

Sheet GENERALES (2) (hidden)
B4: Tabla de vacaciones
B5: Mímino | C5: Máximo | D5: Días | F5: Área geográfica | G5: Salario mímino
B6: 0 | C6: 1 | D6: 12 | F6: Zona Libre de la Frontera Norte | G6: 374.89
B7: =C6+0.01 -> 1.01 | C7: =C6+1 -> 2 | D7: =D6+2 -> 14 | F7: Resto del país | G7: 248.93
B8: =C7+0.01 -> 2.01 | C8: =C7+1 -> 3 | D8: =D7+2 -> 16
B9: 3.01 | C9: 4 | D9: 18
B10: 4.01 | C10: 5 | D10: 20 | F10: Valor de la UMA | G10: Importe
B11: 5.01 | C11: =C10+5 -> 10 | D11: 22 | F11: Enero | G11: 103.74
B12: 10.01 | C12: =C11+5 -> 15 | D12: 24 | F12: Febrero a diciembre | G12: 108.57
B13: 15.01 | C13: 20 | D13: 26
B14: 20.01 | C14: 25 | D14: 28
B15: 25.01 | C15: 30 | D15: 30
B16: 30.01 | C16: 35 | D16: 32
B17: 35.01 | C17: 40 | D17: 34
B18: 40.01 | C18: 45 | D18: 36
B19: 45.01 | C19: 50 | D19: 38
B20: 50.01 | C20: 55 | D20: 40
B21: 55.01 | C21: 60 | D21: 42
B22: 60.01 | C22: 65 | D22: 44
B23: 65.01 | C23: 70 | D23: 46

Sheet AJUSTE SUELDOS (hidden)
B2: Determinación del ajuste de sueldos y salarios 2025
C5: Fecha inicial del ajuste
C6: Fecha final del ajuste | E6: =IF(D6<>"","La tarifa que se considera es "&TEXT(D6,"mmmm") & " año "&YEAR(D6),"") ->  | H6: (-) Deducciones
F7: Percepciones régimen sueldos y asimilados | H7: 6 | I7: 12 | J7: 13 | K7: 20 | N7: Aplicación de la tarifa del artículo 152 LISR (actualizada anexo 8 RMF 2025) | T7: (-) Subsidio al empleo causado | W7: (=) | X7: (-) Retenciones de ISR | AA7: (=) Diferencia
B8: No. empleado | C8: Empleado | D8: RFC | E8: ¿Se relaliza el cálculo anual? | F8: Gravado | G8: Exento | H8: Descuento por incapacidad | I8: Anticipo de salarios | J8: Pagos hechos con exceso al trabajador. | K8: Ausencia (Ausentismo) | L8: Ajustes a percepciones gravadas | M8: Base de ISR | N8: (-) Límite inferior | O8: (=) Excedente del límite inferior | P8: (x) % del excedente del límite inferior | Q8: (=) Impuesto marginal | R8: (+) Cuota fija | S8: (=) ISR causado | T8: Subsidio al empleo causado | U8: (-) Ajuste al subsidio al empleo causado (clave 107 deducciones) | V8: (=) Subsidio al empleo cauaso a aplicar | W8: ISR a cargo | X8: ∑ de la clave 002 (ISR) de deducciones | Y8: (-) ∑ de la clave 01 (reintegro de ISR) del nodo de otros pagos | Z8: (=) ISR retenido del ejercicio | AA8: A cargo | AB8: A favor
M9: =IFERROR(IF((F9-SUM(H9:L9))>0,F9-SUM(H9:L9),""),"") ->  | N9: =IFERROR(IF(E9="Si",VLOOKUP(M9,INDIRECT("T"&TEXT($D$6,"MMMM")),1),""),"") ->  | O9: =IFERROR(M9-N9,"") ->  | P9: =IFERROR(IF(E9="Si",VLOOKUP(M9,INDIRECT("T"&TEXT($D$6,"MMMM")),4),""),"") ->  | Q9: =IFERROR(ROUND(O9*P9%,2),"") ->  | R9: =IFERROR(IF(E9="Si",VLOOKUP(M9,INDIRECT("T"&TEXT($D$6,"MMMM")),3),""),"") ->  | S9: =IFERROR(Q9+R9,"") ->  | W9: =IFERROR(IF(S9>=V9,S9-V9,0),"") ->  | Z9: =IFERROR(IF(X9<>"",X9-Y9,""),"") ->  | AA9: =IFERROR(IF(W9>=Z9,W9-Z9,""),"") ->  | AB9: =IFERROR(IF(Z9>W9,Z9-W9,""),"") -> 
A10: =IFERROR(IF(#REF!<>"",#REF!-#REF!,""),"") -> 

Sheet RECIBO (hidden)
B3: Folio fiscal de consulta:
C6: Fecha emisión:
C8: EMISOR: | X8: Registro patronal
C11: No. de trabajador | L11: Trabajador
C13: RFC | R13: CURP | AG13: No. de días pagados
C16: Inicio relación laboral | M16: Fecha inicial de pago | X16: Fecha final de pago | AH16: Fecha de pago
C18: Antigüedad | L18: Salario diario integrado | V18: Salario base de cotización | AF18: Tipo de jornada
C20: Peridodicidad de pago | P20: Tipo de contrato
C23: Percepciones: | V23: Deducciones:
C24: Clave | E24: Concepto | N24: Importe Gravado | R24: Importe Exento | V24: Clave | X24: Concepto | AK24: Importe
C25: 1 | E25: Sueldos, Salarios Rayas y Jornales | V25: 1 | X25: Seguridad social
C26: 2 | E26: Gratificación Anual (Aguinaldo) | V26: 2 | X26: ISR
C27: 3 | E27: Participación de los Trabajadores en las Utilidades PTU | V27: 3 | X27: Aportaciones a retiro, cesantía en edad avanzada y vejez.
C28: 4 | E28: Reembolso de Gastos Médicos Dentales y Hospitalarios | V28: 4 | X28: Otros
C29: 5 | E29: Fondo de Ahorro | V29: 5 | X29: Aportaciones a Fondo de vivienda
C30: 6 | E30: Caja de ahorro | V30: 6 | X30: Descuento por incapacidad
C31: 9 | E31: Contribuciones a Cargo del Trabajador Pagadas por el Patrón | V31: 7 | X31: Pensión alimenticia
C32: 10 | E32: Premios por puntualidad | V32: 8 | X32: Renta
C33: 11 | E33: Prima de Seguro de vida | V33: 9 | X33: Préstamos provenientes del Fondo Nacional de la Vivienda para los Trabajadores
C34: 12 | E34: Seguro de Gastos Médicos Mayores | V34: 10 | X34: Pago por crédito de vivienda
C35: 13 | E35: Cuotas Sindicales Pagadas por el Patrón | V35: 11 | X35: Pago de abonos INFONACOT
C36: 14 | E36: Subsidios por incapacidad | V36: 12 | X36: Anticipo de salarios
C37: 15 | E37: Becas para trabajadores y/o hijos | V37: 13 | X37: Pagos hechos con exceso al trabajador
C38: 19 | E38: Horas extra | V38: 14 | X38: Errores
C39: 20 | E39: Prima dominical | V39: 15 | X39: Pérdidas
C40: 21 | E40: Prima vacacional | V40: 16 | X40: Averías
C41: 22 | E41: Prima por antigüedad | V41: 17 | X41: Adquisición de artículos producidos por la empresa o establecimiento
C42: 23 | E42: Pagos por separación | V42: 18 | X42: Cuotas para la constitución y fomento de sociedades cooperativas y de cajas de ahorro
C43: 24 | E43: Seguro de retiro | V43: 19 | X43: Cuotas sindicales
C44: 25 | E44: Indemnizaciones | V44: 20 | X44: Ausencia (Ausentismo)
C45: 26 | E45: Reembolso por funeral | V45: 21 | X45: Cuotas obrero patronales
C46: 27 | E46: Cuotas de seguridad social pagadas por el patrón | V46: 22 | X46: Impuestos Locales
C47: 28 | E47: Comisiones | V47: 23 | X47: Aportaciones voluntarias
C48: 29 | E48: Vales de despensa | V48: 24 | X48: Ajuste en Gratificación Anual (Aguinaldo) Exento
C49: 30 | E49: Vales de restaurante | V49: 25 | X49: Ajuste en Gratificación Anual (Aguinaldo) Gravado
C50: 31 | E50: Vales de gasolina | V50: 26 | X50: Ajuste en Participación de los Trabajadores en las Utilidades PTU Exento
C51: 32 | E51: Vales de ropa | V51: 27 | X51: Ajuste en Participación de los Trabajadores en las Utilidades PTU Gravado
C52: 33 | E52: Ayuda para renta | V52: 28 | X52: Ajuste en Reembolso de Gastos Médicos Dentales y Hospitalarios Exento
C53: 34 | E53: Ayuda para artículos escolares | V53: 29 | X53: Ajuste en Fondo de ahorro Exento
C54: 35 | E54: Ayuda para anteojos | V54: 30 | X54: Ajuste en Caja de ahorro Exento
C55: 36 | E55: Ayuda para transporte | V55: 31 | X55: Ajuste en Contribuciones a Cargo del Trabajador Pagadas por el Patrón Exento
C56: 37 | E56: Ayuda para gastos de funeral | V56: 32 | X56: Ajuste en Premios por puntualidad Gravado
C57: 38 | E57: Otros ingresos por salarios | V57: 33 | X57: Ajuste en Prima de Seguro de vida Exento
C58: 39 | E58: Jubilaciones, pensiones o haberes de retiro | V58: 34 | X58: Ajuste en Seguro de Gastos Médicos Mayores Exento
C59: 44 | E59: Jubilaciones, pensiones o haberes de retiro en parcialidades | V59: 35 | X59: Ajuste en Cuotas Sindicales Pagadas por el Patrón Exento
C60: 45 | E60: Ingresos en acciones o títulos valor que representan bienes | V60: 36 | X60: Ajuste en Subsidios por incapacidad Exento
C61: 46 | E61: Ingresos asimilados a salarios | V61: 37 | X61: Ajuste en Becas para trabajadores y/o hijos Exento
C62: 47 | E62: Alimentación | V62: 38 | X62: Ajuste en Horas extra Exento
C63: 48 | E63: Habitación | V63: 39 | X63: Ajuste en Horas extra Gravado
C64: 49 | E64: Premios por asistencia | V64: 40 | X64: Ajuste en Prima dominical Exento
C65: 50 | E65: Viáticos | V65: 41 | X65: Ajuste en Prima dominical Gravado
V66: 42 | X66: Ajuste en Prima vacacional Exento
C67: Otros pagos | R67: IMPORTE | V67: 43 | X67: Ajuste en Prima vacacional Gravado
C68: O001 | E68: Reintegro de ISR pagado en exceso (siempre que no haya sido enterado al SAT). | V68: 44 | X68: Ajuste en Prima por antigüedad Exento
C69: O002 | E69: Subsidio para el empleo (efectivamente entregado al trabajador). | F69: Subsidio para el empleo (efectivamente entregado al trabajador). | G69: Subsidio para el empleo (efectivamente entregado al trabajador). | H69: Subsidio para el empleo (efectivamente entregado al trabajador). | I69: Subsidio para el empleo (efectivamente entregado al trabajador). | J69: Subsidio para el empleo (efectivamente entregado al trabajador). | K69: Subsidio para el empleo (efectivamente entregado al trabajador). | L69: Subsidio para el empleo (efectivamente entregado al trabajador). | M69: Subsidio para el empleo (efectivamente entregado al trabajador). | V69: 45 | X69: Ajuste en Prima por antigüedad Gravado
C70: O003 | E70: Viáticos (entregados al trabajador). | F70: Viáticos (entregados al trabajador). | G70: Viáticos (entregados al trabajador). | H70: Viáticos (entregados al trabajador). | I70: Viáticos (entregados al trabajador). | J70: Viáticos (entregados al trabajador). | K70: Viáticos (entregados al trabajador). | L70: Viáticos (entregados al trabajador). | M70: Viáticos (entregados al trabajador). | V70: 46 | X70: Ajuste en Pagos por separación Exento
C71: O004 | E71: Aplicación de saldo a favor por compensación anual. | F71: Aplicación de saldo a favor por compensación anual. | G71: Aplicación de saldo a favor por compensación anual. | H71: Aplicación de saldo a favor por compensación anual. | I71: Aplicación de saldo a favor por compensación anual. | J71: Aplicación de saldo a favor por compensación anual. | K71: Aplicación de saldo a favor por compensación anual. | L71: Aplicación de saldo a favor por compensación anual. | M71: Aplicación de saldo a favor por compensación anual. | V71: 47 | X71: Ajuste en Pagos por separación Gravado
C72: O005 | E72: Reintegro de ISR retenido en exceso de ejercicio anterior (siempre que no haya sido enterado al SAT). | F72: Reintegro de ISR retenido en exceso de ejercicio anterior (siempre que no haya sido enterado al SAT). | G72: Reintegro de ISR retenido en exceso de ejercicio anterior (siempre que no haya sido enterado al SAT). | H72: Reintegro de ISR retenido en exceso de ejercicio anterior (siempre que no haya sido enterado al SAT). | I72: Reintegro de ISR retenido en exceso de ejercicio anterior (siempre que no haya sido enterado al SAT). | J72: Reintegro de ISR retenido en exceso de ejercicio anterior (siempre que no haya sido enterado al SAT). | K72: Reintegro de ISR retenido en exceso de ejercicio anterior (siempre que no haya sido enterado al SAT). | L72: Reintegro de ISR retenido en exceso de ejercicio anterior (siempre que no haya sido enterado al SAT). | M72: Reintegro de ISR retenido en exceso de ejercicio anterior (siempre que no haya sido enterado al SAT). | V72: 48 | X72: Ajuste en Seguro de retiro Exento
C73: O006 | E73: Alimentos en bienes (Servicios de comedor y comida) Art 94 último párrafo LISR. | F73: Alimentos en bienes (Servicios de comedor y comida) Art 94 último párrafo LISR. | G73: Alimentos en bienes (Servicios de comedor y comida) Art 94 último párrafo LISR. | H73: Alimentos en bienes (Servicios de comedor y comida) Art 94 último párrafo LISR. | I73: Alimentos en bienes (Servicios de comedor y comida) Art 94 último párrafo LISR. | J73: Alimentos en bienes (Servicios de comedor y comida) Art 94 último párrafo LISR. | K73: Alimentos en bienes (Servicios de comedor y comida) Art 94 último párrafo LISR. | L73: Alimentos en bienes (Servicios de comedor y comida) Art 94 último párrafo LISR. | M73: Alimentos en bienes (Servicios de comedor y comida) Art 94 último párrafo LISR. | V73: 49 | X73: Ajuste en Indemnizaciones Exento
C74: O007 | E74: ISR ajustado por subsidio. | F74: ISR ajustado por subsidio. | G74: ISR ajustado por subsidio. | H74: ISR ajustado por subsidio. | I74: ISR ajustado por subsidio. | J74: ISR ajustado por subsidio. | K74: ISR ajustado por subsidio. | L74: ISR ajustado por subsidio. | M74: ISR ajustado por subsidio. | V74: 50 | X74: Ajuste en Indemnizaciones Gravado
C75: O008 | E75: Subsidio efectivamente entregado que no correspondía (Aplica sólo cuando haya ajuste al cierre de mes en relación con el Apéndice 7 de la guía de llenado de nómina). | F75: Subsidio efectivamente entregado que no correspondía (Aplica sólo cuando haya ajuste al cierre de mes en relación con el Apéndice 7 de la guía de llenado de nómina). | G75: Subsidio efectivamente entregado que no correspondía (Aplica sólo cuando haya ajuste al cierre de mes en relación con el Apéndice 7 de la guía de llenado de nómina). | H75: Subsidio efectivamente entregado que no correspondía (Aplica sólo cuando haya ajuste al cierre de mes en relación con el Apéndice 7 de la guía de llenado de nómina). | I75: Subsidio efectivamente entregado que no correspondía (Aplica sólo cuando haya ajuste al cierre de mes en relación con el Apéndice 7 de la guía de llenado de nómina). | J75: Subsidio efectivamente entregado que no correspondía (Aplica sólo cuando haya ajuste al cierre de mes en relación con el Apéndice 7 de la guía de llenado de nómina). | K75: Subsidio efectivamente entregado que no correspondía (Aplica sólo cuando haya ajuste al cierre de mes en relación con el Apéndice 7 de la guía de llenado de nómina). | L75: Subsidio efectivamente entregado que no correspondía (Aplica sólo cuando haya ajuste al cierre de mes en relación con el Apéndice 7 de la guía de llenado de nómina). | M75: Subsidio efectivamente entregado que no correspondía (Aplica sólo cuando haya ajuste al cierre de mes en relación con el Apéndice 7 de la guía de llenado de nómina). | V75: 51 | X75: Ajuste en Reembolso por funeral Exento
C76: O009 | E76: Reembolso de descuentos efectuados para el crédito de vivienda. | F76: Reembolso de descuentos efectuados para el crédito de vivienda. | G76: Reembolso de descuentos efectuados para el crédito de vivienda. | H76: Reembolso de descuentos efectuados para el crédito de vivienda. | I76: Reembolso de descuentos efectuados para el crédito de vivienda. | J76: Reembolso de descuentos efectuados para el crédito de vivienda. | K76: Reembolso de descuentos efectuados para el crédito de vivienda. | L76: Reembolso de descuentos efectuados para el crédito de vivienda. | M76: Reembolso de descuentos efectuados para el crédito de vivienda. | V76: 52 | X76: Ajuste en Cuotas de seguridad social pagadas por el patrón Exento
C77: O999 | D77: 999 | E77: Pagos distintos a los listados y que no deben considerarse como ingreso por sueldos, salarios o ingresos asimilados. | F77: Pagos distintos a los listados y que no deben considerarse como ingreso por sueldos, salarios o ingresos asimilados. | G77: Pagos distintos a los listados y que no deben considerarse como ingreso por sueldos, salarios o ingresos asimilados. | H77: Pagos distintos a los listados y que no deben considerarse como ingreso por sueldos, salarios o ingresos asimilados. | I77: Pagos distintos a los listados y que no deben considerarse como ingreso por sueldos, salarios o ingresos asimilados. | J77: Pagos distintos a los listados y que no deben considerarse como ingreso por sueldos, salarios o ingresos asimilados. | K77: Pagos distintos a los listados y que no deben considerarse como ingreso por sueldos, salarios o ingresos asimilados. | L77: Pagos distintos a los listados y que no deben considerarse como ingreso por sueldos, salarios o ingresos asimilados. | M77: Pagos distintos a los listados y que no deben considerarse como ingreso por sueldos, salarios o ingresos asimilados. | V77: 53 | X77: Ajuste en Comisiones Gravado
V78: 54 | X78: Ajuste en Vales de despensa Exento
V79: 55 | X79: Ajuste en Vales de restaurante Exento
V80: 56 | X80: Ajuste en Vales de gasolina Exento
V81: 57 | X81: Ajuste en Vales de ropa Exento
V82: 58 | X82: Ajuste en Ayuda para renta Exento
V83: 59 | X83: Ajuste en Ayuda para artículos escolares Exento
V84: 60 | X84: Ajuste en Ayuda para anteojos Exento
V85: 61 | X85: Ajuste en Ayuda para transporte Exento
V86: 62 | X86: Ajuste en Ayuda para gastos de funeral Exento
V87: 63 | X87: Ajuste en Otros ingresos por salarios Exento
V88: 64 | X88: Ajuste en Otros ingresos por salarios Gravado
V89: 65 | X89: Ajuste en Jubilaciones, pensiones o haberes de retiro Exento
V90: 66 | X90: Ajuste en Jubilaciones, pensiones o haberes de retiro Gravado
V91: 67 | X91: Ajuste en Pagos por separación Acumulable
V92: 68 | X92: Ajuste en Pagos por separación No acumulable
V93: 69 | X93: Ajuste en Jubilaciones, pensiones o haberes de retiro Acumulable
V94: 70 | X94: Ajuste en Jubilaciones, pensiones o haberes de retiro No acumulable
V95: 71 | X95: Ajuste en Subsidio para el empleo (efectivamente entregado al trabajador)
V96: 72 | X96: Ajuste en Ingresos en acciones o títulos valor que representan bienes Exento
V97: 73 | X97: Ajuste en Ingresos en acciones o títulos valor que representan bienes Gravado
V98: 74 | X98: Ajuste en Alimentación Exento
V99: 75 | X99: Ajuste en Alimentación Gravado
V100: 76 | X100: Ajuste en Habitación Exento
V101: 77 | X101: Ajuste en Habitación Gravado
V102: 78 | X102: Ajuste en Premios por asistencia
V103: 79 | X103: Ajuste en Pagos distintos a los listados y que no deben considerarse como ingreso por sueldos, salarios o ingresos asimilados.
V104: 80 | X104: Ajuste en Viáticos no comprobados
V105: 81 | X105: Ajuste en Viáticos anticipados
V106: 82 | X106: Ajuste en Fondo de ahorro Gravado
V107: 83 | X107: Ajuste en Caja de ahorro Gravado
V108: 84 | X108: Ajuste en Prima de Seguro de vida Gravado
V109: 85 | X109: Ajuste en Seguro de Gastos Médicos Mayores Gravado
V110: 86 | X110: Ajuste en Subsidios por incapacidad Gravado
V111: 87 | X111: Ajuste en Becas para trabajadores y/o hijos Gravado
V112: 88 | X112: Ajuste en Seguro de retiro Gravado
V113: 89 | X113: Ajuste en Vales de despensa Gravado
V114: 90 | X114: Ajuste en Vales de restaurante Gravado
V115: 91 | X115: Ajuste en Vales de gasolina Gravado
V116: 92 | X116: Ajuste en Vales de ropa Gravado
V117: 93 | X117: Ajuste en Ayuda para renta Gravado
V118: 94 | X118: Ajuste en Ayuda para artículos escolares Gravado
V119: 95 | X119: Ajuste en Ayuda para anteojos Gravado
V120: 96 | X120: Ajuste en Ayuda para transporte Gravado
V121: 97 | X121: Ajuste en Ayuda para gastos de funeral Gravado
V122: 98 | X122: Ajuste a ingresos asimilados a salarios gravados
V123: 99 | X123: Ajuste a ingresos por sueldos y salarios gravados
V124: 100 | X124: Ajuste en Viáticos exentos
V125: 101 | X125: ISR Retenido de ejercicio anterior
V126: 102 | X126: Ajuste a pagos por gratificaciones, primas, compensaciones, recompensas u otros a extrabajadores derivados de jubilación en parcialidades, gravados
V127: 103 | X127: Ajuste a pagos que se realicen a extrabajadores que obtengan una jubilación en parcialidades derivados de la ejecución de una resolución judicial o de un laudo gravados
V128: 104 | X128: Ajuste a pagos que se realicen a extrabajadores que obtengan una jubilación en parcialidades derivados de la ejecución de una resolución judicial o de un laudo exentos
V129: 105 | X129: Ajuste a pagos que se realicen a extrabajadores que obtengan una jubilación en una sola exhibición derivados de la ejecución de una resolución judicial o de un laudo gravados
V130: 106 | X130: Ajuste a pagos que se realicen a extrabajadores que obtengan una jubilación en una sola exhibición derivados de la ejecución de una resolución judicial o de un laudo exentos
V131: 107 | X131: Ajuste al Subsidio Causado
M132: Total Grav/Total Exe: | N132: =SUM(N25:Q66) -> 0 | R132: =SUM(R25:U65,R68:U77) -> 0
M133: Total de Percepciones: | N133: =SUM(N132:U132) -> 0 | AB133: Total de Deducciones: | AK133: =SUM(AK25:AN131) -> 0
C135: NETO A PAGAR: | N135: =IFERROR(N133-AK133,0) -> 0

Sheet TARIFAS (2) (hidden)
B4: V. Tarifa aplicable durante 2025 para el cálculo de los pagos provisionales mensuales. | G4: Tabla del subsidio para el empleo aplicable a la tarifa del numeral 5 del rubro B.
B5: Límite inferior | C5: Límite superior | D5: Cuota fija | E5: Por ciento para aplicarse sobre | G5: Monto de ingresos que sirven de base para calcular el impuesto
E6: el excedente del límite inferior | G6: Para Ingresos de | H6: Hasta Ingresos de | I6: Cantidad de subsidio para el empleo mensual
B7: $ | C7: $ | D7: $ | E7: % | G7: $ | H7: $ | I7: $
B8: 0.01 | C8: 746.04 | D8: 0 | E8: 1.92 | G8: 0.01 | H8: 1768.96 | I8: 407.02
B9: 746.05 | C9: 6332.05 | D9: 14.32 | E9: 6.4 | G9: 1768.97 | H9: 2653.38 | I9: 406.83
B10: 6332.06 | C10: 11128.01 | D10: 371.83 | E10: 10.88 | G10: 2653.39 | H10: 3472.84 | I10: 406.62
B11: 11128.02 | C11: 12935.82 | D11: 893.63 | E11: 16 | G11: 3472.85 | H11: 3537.87 | I11: 392.77
B12: 12935.83 | C12: 15487.71 | D12: 1182.88 | E12: 17.92 | G12: 3537.88 | H12: 4446.15 | I12: 382.46
B13: 15487.72 | C13: 31236.49 | D13: 1640.18 | E13: 21.36 | G13: 4446.16 | H13: 4717.18 | I13: 354.23
B14: 31236.5 | C14: 49233 | D14: 5004.12 | E14: 23.52 | G14: 4717.19 | H14: 5335.42 | I14: 324.87
B15: 49233.01 | C15: 93993.9 | D15: 9236.89 | E15: 30 | G15: 5335.43 | H15: 6224.67 | I15: 294.63
B16: 93993.91 | C16: 125325.2 | D16: 22665.17 | E16: 32 | G16: 6224.68 | H16: 7113.9 | I16: 253.54
B17: 125325.21 | C17: 375975.61 | D17: 32691.18 | E17: 34 | G17: 7113.91 | H17: 7382.33 | I17: 217.61
B18: 375975.62 | C18: En adelante | D18: 117912.32 | E18: 35 | G18: 7382.34 | H18: En adelante | I18: 0
B22: Descripción | C22: Días
B23: Diario | C23: 1
B24: Semanal | C24: 7
B25: Catorcenal | C25: 14
B26: Quincenal | C26: 30
B27: Mensual | C27: 30
B28: Bimestral | C28: 60
B29: Unidad obra | C29: 30
B30: Comisión | C30: 30
B31: Precio alzado | C31: 30
B32: Decenal | C32: 10
B33: Otra Periodicidad | C33: 30
B37: VI. Tarifa del mes de enero de 2025, para efectuar los pagos provisionales mensuales a que se refiere el artículo 106 de la Ley del ISR, aplicable a los ingresos que perciban los contribuyentes a que se refiere el Título IV, Capítulo II, Sección I de la Ley del ISR.
B38: Límite inferior | C38: Límite superior | D38: Cuota fija | E38: Por ciento para aplicarse sobre el excedente del límite inferior
B39: $ | C39: $ | D39: $ | E39: %
B40: 0.01 | C40: 746.04 | D40: 0 | E40: 1.92
B41: 746.05 | C41: 6332.05 | D41: 14.32 | E41: 6.4
B42: 6332.06 | C42: 11128.01 | D42: 371.83 | E42: 10.88
B43: 11128.02 | C43: 12935.82 | D43: 893.63 | E43: 16
B44: 12935.83 | C44: 15487.71 | D44: 1182.88 | E44: 17.92
B45: 15487.72 | C45: 31236.49 | D45: 1640.18 | E45: 21.36
B46: 31236.5 | C46: 49233 | D46: 5004.12 | E46: 23.52
B47: 49233.01 | C47: 93993.9 | D47: 9236.89 | E47: 30
B48: 93993.91 | C48: 125325.2 | D48: 22665.17 | E48: 32
B49: 125325.21 | C49: 375975.61 | D49: 32691.18 | E49: 34
B50: 375975.62 | C50: En adelante | D50: 117912.32 | E50: 35
B52: Tarifa para el pago provisional del mes de febrero de 2025, aplicable a los ingresos que perciban los contribuyentes a que se refiere el Capítulo II, Sección I, del Título IV de la Ley del Impuesto sobre la Renta.
B53: Límite inferior | C53: Límite superior | D53: Cuota fija | E53: Por ciento para aplicarse sobre
E54: el excedente del límite inferior
B55: $ | C55: $ | D55: $ | E55: %
B56: 0.01 | C56: 1492.08 | D56: 0 | E56: 1.92
B57: 1492.09 | C57: 12664.1 | D57: 28.64 | E57: 6.4
B58: 12664.11 | C58: 22256.02 | D58: 743.66 | E58: 10.88
B59: 22256.03 | C59: 25871.64 | D59: 1787.26 | E59: 16
B60: 25871.65 | C60: 30975.42 | D60: 2365.76 | E60: 17.92
B61: 30975.43 | C61: 62472.98 | D61: 3280.36 | E61: 21.36
B62: 62472.99 | C62: 98466 | D62: 10008.24 | E62: 23.52
B63: 98466.01 | C63: 187987.8 | D63: 18473.78 | E63: 30
B64: 187987.81 | C64: 250650.4 | D64: 45330.34 | E64: 32
B65: 250650.41 | C65: 751951.22 | D65: 65382.36 | E65: 34
B66: 751951.23 | C66: En adelante | D66: 235824.64 | E66: 35
B68: Tarifa para el pago provisional del mes de marzo de 2025, aplicable a los ingresos que perciban los contribuyentes a que se refiere el Capítulo II, Sección I, del Título IV de la Ley del Impuesto sobre la Renta.
B69: Límite inferior | C69: Límite superior | D69: Cuota fija | E69: Por ciento para aplicarse sobre
E70: el excedente del límite inferior
B71: $ | C71: $ | D71: $ | E71: %
B72: 0.01 | C72: 2238.12 | D72: 0 | E72: 1.92
B73: 2238.13 | C73: 18996.15 | D73: 42.96 | E73: 6.4
B74: 18996.16 | C74: 33384.03 | D74: 1115.49 | E74: 10.88
B75: 33384.04 | C75: 38807.46 | D75: 2680.89 | E75: 16
B76: 38807.47 | C76: 46463.13 | D76: 3548.64 | E76: 17.92
B77: 46463.14 | C77: 93709.47 | D77: 4920.54 | E77: 21.36
B78: 93709.48 | C78: 147699 | D78: 15012.36 | E78: 23.52
B79: 147699.01 | C79: 281981.7 | D79: 27710.67 | E79: 30
B80: 281981.71 | C80: 375975.6 | D80: 67995.51 | E80: 32
B81: 375975.61 | C81: 1127926.83 | D81: 98073.54 | E81: 34
B82: 1127926.84 | C82: En adelante | D82: 353736.96 | E82: 35
B84: Tarifa para el pago provisional del mes de abril de 2025, aplicable a los ingresos que perciban los contribuyentes a que se refiere el Capítulo II, Sección I, del Título IV de la Ley del Impuesto sobre la Renta.
B85: Límite inferior | C85: Límite superior | D85: Cuota fija | E85: Por ciento para aplicarse sobre
E86: el excedente del límite inferior
B87: $ | C87: $ | D87: $ | E87: %
B88: 0.01 | C88: 2984.16 | D88: 0 | E88: 1.92
B89: 2984.17 | C89: 25328.2 | D89: 57.28 | E89: 6.4
B90: 25328.21 | C90: 44512.04 | D90: 1487.32 | E90: 10.88
B91: 44512.05 | C91: 51743.28 | D91: 3574.52 | E91: 16
B92: 51743.29 | C92: 61950.84 | D92: 4731.52 | E92: 17.92
B93: 61950.85 | C93: 124945.96 | D93: 6560.72 | E93: 21.36
B94: 124945.97 | C94: 196932 | D94: 20016.48 | E94: 23.52
B95: 196932.01 | C95: 375975.6 | D95: 36947.56 | E95: 30
B96: 375975.61 | C96: 501300.8 | D96: 90660.68 | E96: 32
B97: 501300.81 | C97: 1503902.44 | D97: 130764.72 | E97: 34
B98: 1503902.45 | C98: En adelante | D98: 471649.28 | E98: 35
B100: Tarifa para el pago provisional del mes de mayo de 2025, aplicable a los ingresos que perciban los contribuyentes a que se refiere el Capítulo II, Sección I, del Título IV de la Ley del Impuesto sobre la Renta.
B101: Límite inferior | C101: Límite superior | D101: Cuota fija | E101: Por ciento para aplicarse sobre
E102: el excedente del límite inferior
B103: $ | C103: $ | D103: $ | E103: %
B104: 0.01 | C104: 3730.2 | D104: 0 | E104: 1.92
B105: 3730.21 | C105: 31660.25 | D105: 71.6 | E105: 6.4
B106: 31660.26 | C106: 55640.05 | D106: 1859.15 | E106: 10.88
B107: 55640.06 | C107: 64679.1 | D107: 4468.15 | E107: 16
B108: 64679.11 | C108: 77438.55 | D108: 5914.4 | E108: 17.92
B109: 77438.56 | C109: 156182.45 | D109: 8200.9 | E109: 21.36
B110: 156182.46 | C110: 246165 | D110: 25020.6 | E110: 23.52
B111: 246165.01 | C111: 469969.5 | D111: 46184.45 | E111: 30
B112: 469969.51 | C112: 626626 | D112: 113325.85 | E112: 32
B113: 626626.01 | C113: 1879878.05 | D113: 163455.9 | E113: 34
B114: 1879878.06 | C114: En adelante | D114: 589561.6 | E114: 35
B116: Tarifa para el pago provisional del mes de junio de 2025, aplicable a los ingresos que perciban los contribuyentes a que se refiere el Capítulo II, Sección I, del Título IV de la Ley del Impuesto sobre la Renta.
B117: Límite inferior | C117: Límite superior | D117: Cuota fija | E117: Por ciento para aplicarse sobre
E118: el excedente del límite inferior
B119: $ | C119: $ | D119: $ | E119: %
B120: 0.01 | C120: 4476.24 | D120: 0 | E120: 1.92
B121: 4476.25 | C121: 37992.3 | D121: 85.92 | E121: 6.4
B122: 37992.31 | C122: 66768.06 | D122: 2230.98 | E122: 10.88
B123: 66768.07 | C123: 77614.92 | D123: 5361.78 | E123: 16
B124: 77614.93 | C124: 92926.26 | D124: 7097.28 | E124: 17.92
B125: 92926.27 | C125: 187418.94 | D125: 9841.08 | E125: 21.36
B126: 187418.95 | C126: 295398 | D126: 30024.72 | E126: 23.52
B127: 295398.01 | C127: 563963.4 | D127: 55421.34 | E127: 30
B128: 563963.41 | C128: 751951.2 | D128: 135991.02 | E128: 32
B129: 751951.21 | C129: 2255853.66 | D129: 196147.08 | E129: 34
B130: 2255853.67 | C130: En adelante | D130: 707473.92 | E130: 35
B132: Tarifa para el pago provisional del mes de julio de 2025, aplicable a los ingresos que perciban los contribuyentes a que se refiere el Capítulo II, Sección I, del Título IV de la Ley del Impuesto sobre la Renta.
B133: Límite inferior | C133: Límite superior | D133: Cuota fija | E133: Por ciento para aplicarse sobre
E134: el excedente del límite inferior
B135: $ | C135: $ | D135: $ | E135: %
B136: 0.01 | C136: 5222.28 | D136: 0 | E136: 1.92
B137: 5222.29 | C137: 44324.35 | D137: 100.24 | E137: 6.4
B138: 44324.36 | C138: 77896.07 | D138: 2602.81 | E138: 10.88
B139: 77896.08 | C139: 90550.74 | D139: 6255.41 | E139: 16
B140: 90550.75 | C140: 108413.97 | D140: 8280.16 | E140: 17.92
B141: 108413.98 | C141: 218655.43 | D141: 11481.26 | E141: 21.36
B142: 218655.44 | C142: 344631 | D142: 35028.84 | E142: 23.52
B143: 344631.01 | C143: 657957.3 | D143: 64658.23 | E143: 30
B144: 657957.31 | C144: 877276.4 | D144: 158656.19 | E144: 32
B145: 877276.41 | C145: 2631829.27 | D145: 228838.26 | E145: 34
B146: 2631829.28 | C146: En adelante | D146: 825386.24 | E146: 35
B148: Tarifa para el pago provisional del mes de agosto de 2025, aplicable a los ingresos que perciban los contribuyentes a que se refiere el Capítulo II, Sección I, del Título IV de la Ley del Impuesto sobre la Renta.
B149: Límite inferior | C149: Límite superior | D149: Cuota fija | E149: Por ciento para aplicarse sobre
E150: el excedente del límite inferior
B151: $ | C151: $ | D151: $ | E151: %
B152: 0.01 | C152: 5968.32 | D152: 0 | E152: 1.92
B153: 5968.33 | C153: 50656.4 | D153: 114.56 | E153: 6.4
B154: 50656.41 | C154: 89024.08 | D154: 2974.64 | E154: 10.88
B155: 89024.09 | C155: 103486.56 | D155: 7149.04 | E155: 16
B156: 103486.57 | C156: 123901.68 | D156: 9463.04 | E156: 17.92
B157: 123901.69 | C157: 249891.92 | D157: 13121.44 | E157: 21.36
B158: 249891.93 | C158: 393864 | D158: 40032.96 | E158: 23.52
B159: 393864.01 | C159: 751951.2 | D159: 73895.12 | E159: 30
B160: 751951.21 | C160: 1002601.6 | D160: 181321.36 | E160: 32
B161: 1002601.61 | C161: 3007804.88 | D161: 261529.44 | E161: 34
B162: 3007804.89 | C162: En adelante | D162: 943298.56 | E162: 35
B164: Tarifa para el pago provisional del mes de septiembre de 2025, aplicable a los ingresos que perciban los contribuyentes a que se refiere el Capítulo II, Sección I, del Título IV de la Ley del Impuesto sobre la Renta.
B165: Límite inferior | C165: Límite superior | D165: Cuota fija | E165: Por ciento para aplicarse sobre
E166: el excedente del límite inferior
B167: $ | C167: $ | D167: $ | E167: %
B168: 0.01 | C168: 6714.36 | D168: 0 | E168: 1.92
B169: 6714.37 | C169: 56988.45 | D169: 128.88 | E169: 6.4
B170: 56988.46 | C170: 100152.09 | D170: 3346.47 | E170: 10.88
B171: 100152.1 | C171: 116422.38 | D171: 8042.67 | E171: 16
B172: 116422.39 | C172: 139389.39 | D172: 10645.92 | E172: 17.92
B173: 139389.4 | C173: 281128.41 | D173: 14761.62 | E173: 21.36
B174: 281128.42 | C174: 443097 | D174: 45037.08 | E174: 23.52
B175: 443097.01 | C175: 845945.1 | D175: 83132.01 | E175: 30
B176: 845945.11 | C176: 1127926.8 | D176: 203986.53 | E176: 32
B177: 1127926.81 | C177: 3383780.49 | D177: 294220.62 | E177: 34
B178: 3383780.5 | C178: En adelante | D178: 1061210.88 | E178: 35
B180: Tarifa para el pago provisional del mes de octubre de 2025, aplicable a los ingresos que perciban los contribuyentes a que se refiere el Capítulo II, Sección I, del Título IV de la Ley del Impuesto sobre la Renta.
B181: Límite inferior | C181: Límite superior | D181: Cuota fija | E181: Por ciento para aplicarse sobre
E182: el excedente del límite inferior
B183: $ | C183: $ | D183: $ | E183: %
B184: 0.01 | C184: 7460.4 | D184: 0 | E184: 1.92
B185: 7460.41 | C185: 63320.5 | D185: 143.2 | E185: 6.4
B186: 63320.51 | C186: 111280.1 | D186: 3718.3 | E186: 10.88
B187: 111280.11 | C187: 129358.2 | D187: 8936.3 | E187: 16
B188: 129358.21 | C188: 154877.1 | D188: 11828.8 | E188: 17.92
B189: 154877.11 | C189: 312364.9 | D189: 16401.8 | E189: 21.36
B190: 312364.91 | C190: 492330 | D190: 50041.2 | E190: 23.52
B191: 492330.01 | C191: 939939 | D191: 92368.9 | E191: 30
B192: 939939.01 | C192: 1253252 | D192: 226651.7 | E192: 32
B193: 1253252.01 | C193: 3759756.1 | D193: 326911.8 | E193: 34
B194: 3759756.11 | C194: En adelante | D194: 1179123.2 | E194: 35
B196: Tarifa para el pago provisional del mes de noviembre de 2025, aplicable a los ingresos que perciban los contribuyentes a que se refiere el Capítulo II, Sección I, del Título IV de la Ley del Impuesto sobre la Renta.
B197: Límite inferior | C197: Límite superior | D197: Cuota fija | E197: Por ciento para aplicarse sobre
E198: el excedente del límite inferior
B199: $ | C199: $ | D199: $ | E199: %
B200: 0.01 | C200: 8206.44 | D200: 0 | E200: 1.92
B201: 8206.45 | C201: 69652.55 | D201: 157.52 | E201: 6.4
B202: 69652.56 | C202: 122408.11 | D202: 4090.13 | E202: 10.88
B203: 122408.12 | C203: 142294.02 | D203: 9829.93 | E203: 16
B204: 142294.03 | C204: 170364.81 | D204: 13011.68 | E204: 17.92
B205: 170364.82 | C205: 343601.39 | D205: 18041.98 | E205: 21.36
B206: 343601.4 | C206: 541563 | D206: 55045.32 | E206: 23.52
B207: 541563.01 | C207: 1033932.9 | D207: 101605.79 | E207: 30
B208: 1033932.91 | C208: 1378577.2 | D208: 249316.87 | E208: 32
B209: 1378577.21 | C209: 4135731.71 | D209: 359602.98 | E209: 34
B210: 4135731.72 | C210: En adelante | D210: 1297035.52 | E210: 35
B212: Tarifa para el pago provisional del mes de diciembre de 2025, aplicable a los ingresos que perciban los contribuyentes a que se refiere el Capítulo II, Sección I, del Título IV de la Ley del Impuesto sobre la Renta.
B213: Límite inferior | C213: Límite superior | D213: Cuota fija | E213: Por ciento para aplicarse sobre
E214: el excedente del límite inferior
B215: $ | C215: $ | D215: $ | E215: %
B216: 0.01 | C216: 8952.49 | D216: 0 | E216: 1.92
B217: 8952.5 | C217: 75984.55 | D217: 171.88 | E217: 6.4
B218: 75984.56 | C218: 133536.07 | D218: 4461.94 | E218: 10.88
B219: 133536.08 | C219: 155229.8 | D219: 10723.55 | E219: 16
B220: 155229.81 | C220: 185852.57 | D220: 14194.54 | E220: 17.92
... 21 more rows

Sheet GENERALES1 (hidden)
B5: Tabla de vacaciones para trabajadores de no buques (art. 76 LFT)
B6: Años
B7: Mínimo | C7: Máximo | D7: Días
B8: 0 | C8: 1 | D8: 12
B9: =C8+0.01 -> 1.01 | C9: 2 | D9: =D8+2 -> 14
B10: =C9+0.01 -> 2.01 | C10: 3 | D10: =D9+2 -> 16
B11: 3.01 | C11: 4 | D11: 18
B12: 4.01 | C12: 5 | D12: 20
B13: 5.01 | C13: =C12+5 -> 10 | D13: 22
B14: 10.01 | C14: =C13+5 -> 15 | D14: 24
B15: 15.01 | C15: 20 | D15: 26
B16: 20.01 | C16: 25 | D16: 28
B17: 25.01 | C17: 30 | D17: 30
B18: 30.01 | C18: 35 | D18: 32
B20: Salario mínimo
B21: Zona Libre de la Frontera Norte | C21: 419.88
B22: Zona del Salario Mínimo General | C22: 278.8
B24: Valor de la UMA
B25: Enero | C25: 108.57
B26: Febrero en adelante | C26: 113.14
B28: Valor de la UMA mensual enero | C28: 3300.53
B29: Valor de la UMA mensual posterior | C29: 3439.46
B30: Total base ISR para subsidio | C30: 10171
B31: % del subsidio al empleo | C31: 0.138
B32: % Subsidio al empleo Enero | C32: 0.1439
B35: Días
B36: 1
B37: 2
B38: 3
B39: 4
B40: 5
B41: 6
B42: 7
B43: 8
B44: 9
B45: 10
B46: 11
B47: 12
B48: 13
B49: 14
B50: 15
B51: 16
B52: 17
B53: 18
B54: 19
B55: 20
B56: 21
B57: 22
B58: 23
B59: 24
B60: 25
B61: 26
B62: 27
B63: 28
B64: 29
B65: 30
B66: 31

Sheet c_Estado (hidden)
A1: Catálogo de estados.
A2: Versión CFDI | B2: Versión catálogo | C2: Revisión catálogo | D2: Fecha publicación de catálogo | E2: Fecha inicio de vigencia del catálogo | F2: Fecha fin de vigencia del catálogo
A3: 4 | B3: 1 | C3: 0 | D3: 0 | E3: 2022-01-01
A5: c_Estado | B5: c_Pais | C5: Nombre del estado | D5: Fecha inicio de vigencia | E5: Fecha fin de vigencia
A6: AGU | B6: MEX | C6: Aguascalientes | D6: 2022-01-01
A7: BCN | B7: MEX | C7: Baja California | D7: 2022-01-01
A8: BCS | B8: MEX | C8: Baja California Sur | D8: 2022-01-01
A9: CAM | B9: MEX | C9: Campeche | D9: 2022-01-01
A10: CHP | B10: MEX | C10: Chiapas | D10: 2022-01-01
A11: CHH | B11: MEX | C11: Chihuahua | D11: 2022-01-01
A12: COA | B12: MEX | C12: Coahuila | D12: 2022-01-01
A13: COL | B13: MEX | C13: Colima | D13: 2022-01-01
A14: CMX | B14: MEX | C14: Ciudad de México | D14: 2022-01-01
A15: DUR | B15: MEX | C15: Durango | D15: 2022-01-01
A16: GUA | B16: MEX | C16: Guanajuato | D16: 2022-01-01
A17: GRO | B17: MEX | C17: Guerrero | D17: 2022-01-01
A18: HID | B18: MEX | C18: Hidalgo | D18: 2022-01-01
A19: JAL | B19: MEX | C19: Jalisco | D19: 2022-01-01
A20: MEX | B20: MEX | C20: Estado de México | D20: 2022-01-01
A21: MIC | B21: MEX | C21: Michoacán | D21: 2022-01-01
A22: MOR | B22: MEX | C22: Morelos | D22: 2022-01-01
A23: NAY | B23: MEX | C23: Nayarit | D23: 2022-01-01
A24: NLE | B24: MEX | C24: Nuevo León | D24: 2022-01-01
A25: OAX | B25: MEX | C25: Oaxaca | D25: 2022-01-01
A26: PUE | B26: MEX | C26: Puebla | D26: 2022-01-01
A27: QUE | B27: MEX | C27: Querétaro | D27: 2022-01-01
A28: ROO | B28: MEX | C28: Quintana Roo | D28: 2022-01-01
A29: SLP | B29: MEX | C29: San Luis Potosí | D29: 2022-01-01
A30: SIN | B30: MEX | C30: Sinaloa | D30: 2022-01-01
A31: SON | B31: MEX | C31: Sonora | D31: 2022-01-01
A32: TAB | B32: MEX | C32: Tabasco | D32: 2022-01-01
A33: TAM | B33: MEX | C33: Tamaulipas | D33: 2022-01-01
A34: TLA | B34: MEX | C34: Tlaxcala | D34: 2022-01-01
A35: VER | B35: MEX | C35: Veracruz | D35: 2022-01-01
A36: YUC | B36: MEX | C36: Yucatán | D36: 2022-01-01
A37: ZAC | B37: MEX | C37: Zacatecas | D37: 2022-01-01
A38: AL | B38: USA | C38: Alabama | D38: 2022-01-01
A39: AK | B39: USA | C39: Alaska | D39: 2022-01-01
A40: AZ | B40: USA | C40: Arizona | D40: 2022-01-01
A41: AR | B41: USA | C41: Arkansas | D41: 2022-01-01
A42: CA | B42: USA | C42: California | D42: 2022-01-01
A43: NC | B43: USA | C43: Carolina del Norte | D43: 2022-01-01
A44: SC | B44: USA | C44: Carolina del Sur | D44: 2022-01-01
A45: CO | B45: USA | C45: Colorado | D45: 2022-01-01
A46: CT | B46: USA | C46: Connecticut | D46: 2022-01-01
A47: ND | B47: USA | C47: Dakota del Norte | D47: 2022-01-01
A48: SD | B48: USA | C48: Dakota del Sur | D48: 2022-01-01
A49: DE | B49: USA | C49: Delaware | D49: 2022-01-01
A50: FL | B50: USA | C50: Florida | D50: 2022-01-01
A51: GA | B51: USA | C51: Georgia | D51: 2022-01-01
A52: HI | B52: USA | C52: Hawái | D52: 2022-01-01
A53: ID | B53: USA | C53: Idaho | D53: 2022-01-01
A54: IL | B54: USA | C54: Illinois | D54: 2022-01-01
A55: IN | B55: USA | C55: Indiana | D55: 2022-01-01
A56: IA | B56: USA | C56: Iowa | D56: 2022-01-01
A57: KS | B57: USA | C57: Kansas | D57: 2022-01-01
A58: KY | B58: USA | C58: Kentucky | D58: 2022-01-01
A59: LA | B59: USA | C59: Luisiana | D59: 2022-01-01
A60: ME | B60: USA | C60: Maine | D60: 2022-01-01
A61: MD | B61: USA | C61: Maryland | D61: 2022-01-01
A62: MA | B62: USA | C62: Massachusetts | D62: 2022-01-01
A63: MI | B63: USA | C63: Míchigan | D63: 2022-01-01
A64: MN | B64: USA | C64: Minnesota | D64: 2022-01-01
A65: MS | B65: USA | C65: Misisipi | D65: 2022-01-01
A66: MO | B66: USA | C66: Misuri | D66: 2022-01-01
A67: MT | B67: USA | C67: Montana | D67: 2022-01-01
A68: NE | B68: USA | C68: Nebraska | D68: 2022-01-01
A69: NV | B69: USA | C69: Nevada | D69: 2022-01-01
A70: NJ | B70: USA | C70: Nueva Jersey | D70: 2022-01-01
A71: NY | B71: USA | C71: Nueva York | D71: 2022-01-01
A72: NH | B72: USA | C72: Nuevo Hampshire | D72: 2022-01-01
A73: NM | B73: USA | C73: Nuevo México | D73: 2022-01-01
A74: OH | B74: USA | C74: Ohio | D74: 2022-01-01
A75: OK | B75: USA | C75: Oklahoma | D75: 2022-01-01
A76: OR | B76: USA | C76: Oregón | D76: 2022-01-01
A77: PA | B77: USA | C77: Pensilvania | D77: 2022-01-01
A78: RI | B78: USA | C78: Rhode Island | D78: 2022-01-01
A79: TN | B79: USA | C79: Tennessee | D79: 2022-01-01
A80: TX | B80: USA | C80: Texas | D80: 2022-01-01
A81: UT | B81: USA | C81: Utah | D81: 2022-01-01
A82: VT | B82: USA | C82: Vermont | D82: 2022-01-01
A83: VA | B83: USA | C83: Virginia | D83: 2022-01-01
A84: WV | B84: USA | C84: Virginia Occidental | D84: 2022-01-01
A85: WA | B85: USA | C85: Washington | D85: 2022-01-01
A86: WI | B86: USA | C86: Wisconsin | D86: 2022-01-01
A87: WY | B87: USA | C87: Wyoming | D87: 2022-01-01
A88: ON | B88: CAN | C88: Ontario | D88: 2022-01-01
A89: QC | B89: CAN | C89: Quebec | D89: 2022-01-01
A90: NS | B90: CAN | C90: Nueva Escocia | D90: 2022-01-01
A91: NB | B91: CAN | C91: Nuevo Brunswick | D91: 2022-01-01
A92: MB | B92: CAN | C92: Manitoba | D92: 2022-01-01
A93: BC | B93: CAN | C93: Columbia Británica | D93: 2022-01-01
A94: PE | B94: CAN | C94: Isla del Príncipe Eduardo | D94: 2022-01-01
A95: SK | B95: CAN | C95: Saskatchewan | D95: 2022-01-01
A96: AB | B96: CAN | C96: Alberta | D96: 2022-01-01
A97: NL | B97: CAN | C97: Terranova y Labrador | D97: 2022-01-01
A98: NT | B98: CAN | C98: Territorios del Noroeste | D98: 2022-01-01
A99: YT | B99: CAN | C99: Yukón | D99: 2022-01-01
A100: UN | B100: CAN | C100: Nunavut | D100: 2022-01-01

Sheet GENERALES (hidden)
B2: Datos generales para los calculos
B4: Tabla de vacaciones para trabajadores de no buques (art. 76 LFT) | F4: Días de aguinaldo que otroga la empresa (art. 87 LFT) | J4: Prima vacacional que otorga la empresa (art. 80 LFT)
B5: Años | F5: Años | J5: Años
B6: Mínimo | C6: Máximo | D6: Días | F6: Mínimo | G6: Máximo | H6: Días | J6: Mínimo | K6: Máximo | L6: Días
B7: 0 | C7: 1 | D7: 12 | F7: 0 | G7: 30 | H7: 15 | J7: 0 | K7: 30 | L7: 0.25
B8: =C7+0.01 -> 1.01 | C8: 2 | D8: =D7+2 -> 14
B9: =C8+0.01 -> 2.01 | C9: 3 | D9: =D8+2 -> 16 | F9: Salario mínimo | J9: Valor de la UMA
B10: 3.01 | C10: 4 | D10: 18 | F10: Zona norte | G10: 374.89 | J10: Enero | K10: 103.74
B11: 4.01 | C11: 5 | D11: 20 | F11: Otra | G11: 248.93 | J11: Febrero | K11: 108.57
B12: 5.01 | C12: =C11+5 -> 10 | D12: 22
B13: 10.01 | C13: =C12+5 -> 15 | D13: 24
B14: 15.01 | C14: 20 | D14: 26 | F14: Enero - Febrero | G14: 59 | J14: Semanal | K14: 7
B15: 20.01 | C15: 25 | D15: 28 | F15: Marzo - Abril | G15: 61 | J15: Decenal | K15: 10
B16: 25.01 | C16: 30 | D16: 30 | F16: Mayo - Junio | G16: 61 | J16: Quincenal | K16: 15
B17: 30.01 | C17: 35 | D17: 32 | F17: Julio - Agosto | G17: 62 | J17: Mensual | K17: 30
F18: Septiembre - Octubre | G18: 61
F19: Noviembre - Diciembre | G19: 61
F21: Enero | G21: 1
F22: Febrero | G22: 2
F23: Marzo | G23: 3
F24: Abril | G24: 4
F25: Mayo | G25: 5
F26: Junio | G26: 6
F27: Julio | G27: 7
F28: Agosto | G28: 8
F29: Septiembre | G29: 9
F30: Octubre | G30: 10
F31: Noviembre | G31: 11
F32: Diciembre | G32: 12
